Workbook

Sheet Participants - QTR
E1: Jul13 - Sep13 | H1: Oct13 - Dec13 | K1: Jan14 - Mar14 | N1: Apr14 - Jun14 | Q1: Jul14 - Sep14 | T1: Oct14 - Dec14 | W1: Jan15 - Mar15 | Z1: Apr15 - Jun15 | AC1: Jul15 - Sep15 | AF1: Oct15 - Dec15 | AI1: Jan16 - Mar16 | AL1: Apr16 - Jun16 | AO1: Jul16 - Sep16 | AR1: Oct16 - Dec16 | AU1: Jan17 - Mar17 | AX1: Apr17 - Jun17 | BA1: Jul17 - Sep17 | BD1: Oct17 - Dec17 | BG1: Jan18 - Mar18 | BJ1: Apr18 - Jun18 | BM1: Jul18 - Sep18 | BP1: Oct18 - Dec18 | BS1: Jan19 - Mar19 | BV1: Apr19 - Jun19 | BY1: Jul19 - Sep19 | CB1: Oct19 - Dec19 | CE1: Jan20 - Mar20
A2: WDA # | B2: WDA Name | C2: Grantee # | D2: Grantee Name | E2: Missing SSN | F2: Total Participants | G2: Rate | H2: Missing SSN | I2: Total Participants | J2: Rate | K2: Missing SSN | L2: Total Participants | M2: Rate | N2: Missing SSN | O2: Total Participants | P2: Rate | Q2: Missing SSN | R2: Total Participants | S2: Rate | T2: Missing SSN | U2: Total Participants | V2: Rate | W2: Missing SSN | X2: Total Participants | Y2: Rate | Z2: Missing SSN | AA2: Total Participants | AB2: Rate | AC2: Missing SSN | AD2: Total Participants | AE2: Rate | AF2: Missing SSN | AG2: Total Participants | AH2: Rate | AI2: Missing SSN | AJ2: Total Participants | AK2: Rate | AL2: Missing SSN | AM2: Total Participants | AN2: Rate | AO2: Missing SSN | AP2: Total Participants | AQ2: Rate | AR2: Missing SSN | AS2: Total Participants | AT2: Rate | AU2: Missing SSN | AV2: Total Participants | AW2: Rate | AX2: Missing SSN | AY2: Total Participants | AZ2: Rate | BA2: Missing SSN | BB2: Total Participants | BC2: Rate | BD2: Missing SSN | BE2: Total Participants | BF2: Rate | BG2: Missing SSN | BH2: Total Participants | BI2: Rate | BJ2: Missing SSN | BK2: Total Participants | BL2: Rate | BM2: Missing SSN | BN2: Total Participants | BO2: Rate | BP2: Missing SSN | BQ2: Total Participants | BR2: Rate | BS2: Missing SSN | BT2: Total Participants | BU2: Rate | BV2: Missing SSN | BW2: Total Participants | BX2: Rate | BY2: Missing SSN | BZ2: Total Participants | CA2: Rate | CB2: Missing SSN | CC2: Total Participants | CD2: Rate | CE2: Missing SSN | CF2: Total Participants | CG2: Rate
A3: 1 | B3: Panhandle | C3: 502 | D3: Amarillo College | E3: 40 | F3: 258 | G3: =E3/F3 -> 0.1550387597 | H3: 45 | I3: 285 | J3: =H3/I3 -> 0.1578947368 | K3: 45 | L3: 301 | M3: =K3/L3 -> 0.1495016611 | N3: 41 | O3: 249 | P3: =N3/O3 -> 0.1646586345 | Q3: 1 | R3: 12 | S3: =Q3/R3 -> 0.08333333333 | T3: 26 | U3: 207 | V3: =T3/U3 -> 0.1256038647 | W3: 159 | X3: 635 | Y3: =W3/X3 -> 0.2503937008 | Z3: 166 | AA3: 680 | AB3: =Z3/AA3 -> 0.2441176471 | AC3: 99 | AD3: 386 | AE3: =AC3/AD3 -> 0.2564766839 | AF3: 92 | AG3: 471 | AH3: =AF3/AG3 -> 0.195329087 | AI3: 369 | AJ3: 995 | AK3: =AI3/AJ3 -> 0.3708542714 | AL3: 319 | AM3: 914 | AN3: =AL3/AM3 -> 0.3490153173 | AO3: 234 | AP3: 682 | AQ3: =AO3/AP3 -> 0.3431085044 | AR3: 279 | AS3: 812 | AT3: =AR3/AS3 -> 0.3435960591 | AU3: 255 | AV3: 711 | AW3: =AU3/AV3 -> 0.358649789 | AX3: 202 | AY3: 568 | AZ3: =AX3/AY3 -> 0.3556338028 | BA3: 168 | BB3: 673 | BC3: =BA3/BB3 -> 0.249628529 | BD3: 214 | BE3: 864 | BF3: =BD3/BE3 -> 0.2476851852 | BG3: 239 | BH3: 794 | BI3: =BG3/BH3 -> 0.3010075567 | BJ3: 198 | BK3: 616 | BL3: =BJ3/BK3 -> 0.3214285714 | BM3: 144 | BN3: 544 | BO3: =BM3/BN3 -> 0.2647058824 | BP3: 189 | BQ3: 699 | BR3: =BP3/BQ3 -> 0.2703862661 | BS3: 211 | BT3: 762 | BU3: =BS3/BT3 -> 0.2769028871 | BV3: 183 | BW3: 671 | BX3: =BV3/BW3 -> 0.2727272727 | BY3: 102 | BZ3: 574 | CA3: =BY3/BZ3 -> 0.1777003484 | CB3: 119 | CC3: 760 | CD3: =CB3/CC3 -> 0.1565789474 | CE3: 99 | CF3: 563 | CG3: =CE3/CF3 -> 0.1758436945
A4: 2 | B4: South Plains | C4: 526 | D4: Region 17 ESC, South Plains | E4: 37 | F4: 127 | G4: =E4/F4 -> 0.2913385827 | H4: 47 | I4: 181 | J4: =H4/I4 -> 0.2596685083 | K4: 52 | L4: 200 | M4: =K4/L4 -> 0.26 | N4: 57 | O4: 205 | P4: =N4/O4 -> 0.2780487805 | Q4: 118 | R4: 399 | S4: =Q4/R4 -> 0.2957393484 | T4: 166 | U4: 504 | V4: =T4/U4 -> 0.3293650794 | W4: 131 | X4: 480 | Y4: =W4/X4 -> 0.2729166667 | Z4: 99 | AA4: 406 | AB4: =Z4/AA4 -> 0.2438423645 | AC4: 70 | AD4: 320 | AE4: =AC4/AD4 -> 0.21875 | AF4: 132 | AG4: 487 | AH4: =AF4/AG4 -> 0.2710472279 | AI4: 126 | AJ4: 506 | AK4: =AI4/AJ4 -> 0.2490118577 | AL4: 96 | AM4: 466 | AN4: =AL4/AM4 -> 0.2060085837 | AO4: 84 | AP4: 438 | AQ4: =AO4/AP4 -> 0.1917808219 | AR4: 124 | AS4: 544 | AT4: =AR4/AS4 -> 0.2279411765 | AU4: 118 | AV4: 531 | AW4: =AU4/AV4 -> 0.2222222222 | AX4: 98 | AY4: 448 | AZ4: =AX4/AY4 -> 0.21875 | BA4: 71 | BB4: 323 | BC4: =BA4/BB4 -> 0.2198142415 | BD4: 92 | BE4: 447 | BF4: =BD4/BE4 -> 0.2058165548 | BG4: 106 | BH4: 468 | BI4: =BG4/BH4 -> 0.2264957265 | BJ4: 92 | BK4: 429 | BL4: =BJ4/BK4 -> 0.2144522145 | BM4: 71 | BN4: 413 | BO4: =BM4/BN4 -> 0.1719128329 | BP4: 146 | BQ4: 572 | BR4: =BP4/BQ4 -> 0.2552447552 | BS4: 137 | BT4: 510 | BU4: =BS4/BT4 -> 0.268627451 | BV4: 84 | BW4: 378 | BX4: =BV4/BW4 -> 0.2222222222 | BY4: 66 | BZ4: 379 | CA4: =BY4/BZ4 -> 0.1741424802 | CB4: 80 | CC4: 431 | CD4: =CB4/CC4 -> 0.1856148492 | CE4: 80 | CF4: 407 | CG4: =CE4/CF4 -> 0.1965601966
A5: 3 | B5: North Texas | C5: 528 | D5: Region 9 ESC | E5: 91 | F5: 253 | G5: 0.3596837945 | H5: 109 | I5: 298 | J5: 0.3657718121 | K5: 82 | L5: 208 | M5: 0.3942307692 | N5: 81 | O5: 231 | P5: 0.3506493506 | Q5: 113 | R5: 267 | S5: 0.4232209738 | T5: 134 | U5: 308 | V5: 0.4350649351 | W5: 121 | X5: 303 | Y5: 0.399339934 | Z5: 94 | AA5: 302 | AB5: 0.3112582781 | AC5: 84 | AD5: 248 | AE5: 0.3387096774 | AF5: 131 | AG5: 316 | AH5: 0.414556962 | AI5: 119 | AJ5: 313 | AK5: 0.3801916933 | AL5: 105 | AM5: 270 | AN5: 0.3888888889 | AO5: 68 | AP5: 221 | AQ5: 0.3076923077 | AR5: 130 | AS5: 348 | AT5: 0.3735632184 | AU5: 110 | AV5: 325 | AW5: 0.3384615385 | AX5: 81 | AY5: 297 | AZ5: 0.2727272727 | BA5: 71 | BB5: 299 | BC5: 0.237458194 | BD5: 91 | BE5: 341 | BF5: 0.2668621701 | BG5: 77 | BH5: 317 | BI5: 0.2429022082 | BJ5: 61 | BK5: 266 | BL5: 0.2293233083 | BM5: 56 | BN5: 204 | BO5: 0.2745098039 | BP5: 99 | BQ5: 285 | BR5: 0.3473684211 | BS5: 78 | BT5: 251 | BU5: 0.3107569721 | BV5: 60 | BW5: 266 | BX5: 0.2255639098 | BY5: 50 | BZ5: 219 | CA5: 0.2283105023 | CB5: 73 | CC5: 289 | CD5: 0.2525951557 | CE5: 73 | CF5: 289 | CG5: 0.2525951557
A6: 4 | B6: North Central | C6: 533 | D6: Weatherford ISD | E6: 9 | F6: 60 | G6: 0.15 | H6: 52 | I6: 128 | J6: 0.40625 | K6: 80 | L6: 160 | M6: 0.5 | N6: 69 | O6: 137 | P6: 0.503649635 | Q6: 46 | R6: 90 | S6: 0.5111111111 | T6: 81 | U6: 168 | V6: 0.4821428571 | W6: 124 | X6: 272 | Y6: 0.4558823529 | Z6: 104 | AA6: 221 | AB6: 0.4705882353 | AC6: 50 | AD6: 141 | AE6: 0.3546099291 | AF6: 114 | AG6: 236 | AH6: 0.4830508475 | AI6: 114 | AJ6: 252 | AK6: 0.4523809524 | AL6: 83 | AM6: 191 | AN6: 0.4345549738 | AO6: 45 | AP6: 103 | AQ6: 0.4368932039 | AR6: 88 | AS6: 194 | AT6: 0.4536082474 | AU6: 89 | AV6: 215 | AW6: 0.4139534884 | AX6: 58 | AY6: 156 | AZ6: 0.3717948718 | BA6: 72 | BB6: 200 | BC6: 0.36 | BD6: 75 | BE6: 203 | BF6: 0.3694581281 | BG6: 66 | BH6: 161 | BI6: 0.4099378882 | BJ6: 80 | BK6: 159 | BL6: 0.5031446541 | BM6: 93 | BN6: 223 | BO6: 0.4170403587 | BP6: 123 | BQ6: 279 | BR6: 0.4408602151 | BS6: 103 | BT6: 230 | BU6: 0.447826087 | BV6: 93 | BW6: 207 | BX6: 0.4492753623 | BY6: 53 | BZ6: 170 | CA6: 0.3117647059 | CB6: 80 | CC6: 228 | CD6: 0.350877193 | CE6: 74 | CF6: 202 | CG6: 0.3663366337
A7: 4 | B7: North Central | C7: 540 | D7: Navarro College | E7: 73 | F7: 219 | G7: 0.3333333333 | H7: 114 | I7: 354 | J7: 0.3220338983 | K7: 108 | L7: 299 | M7: 0.3612040134 | N7: 96 | O7: 265 | P7: 0.3622641509 | Q7: 74 | R7: 210 | S7: 0.3523809524 | T7: 117 | U7: 337 | V7: 0.3471810089 | W7: 109 | X7: 319 | Y7: 0.34169279 | Z7: 120 | AA7: 379 | AB7: 0.3166226913 | AC7: 92 | AD7: 268 | AE7: 0.3432835821 | AF7: 123 | AG7: 343 | AH7: 0.3586005831 | AI7: 153 | AJ7: 404 | AK7: 0.3787128713 | AL7: 146 | AM7: 364 | AN7: 0.4010989011 | AO7: 85 | AP7: 233 | AQ7: 0.364806867 | AR7: 142 | AS7: 359 | AT7: 0.3955431755 | AU7: 142 | AV7: 422 | AW7: 0.336492891 | AX7: 126 | AY7: 457 | AZ7: 0.2757111597 | BA7: 78 | BB7: 323 | BC7: 0.2414860681 | BD7: 107 | BE7: 421 | BF7: 0.2541567696 | BG7: 98 | BH7: 392 | BI7: 0.25 | BJ7: 91 | BK7: 409 | BL7: 0.2224938875 | BM7: 73 | BN7: 309 | BO7: 0.2362459547 | BP7: 97 | BQ7: 408 | BR7: 0.237745098 | BS7: 109 | BT7: 421 | BU7: 0.2589073634 | BV7: 114 | BW7: 429 | BX7: 0.2657342657 | BY7: 71 | BZ7: 277 | CA7: 0.2563176895 | CB7: 92 | CC7: 406 | CD7: 0.2266009852 | CE7: 78 | CF7: 361 | CG7: 0.216066482
A8: 4 | B8: North Central | C8: 541 | D8: Paris Jr College - North Central | G8: NA | J8: NA | M8: NA | P8: NA | S8: NA | T8: 2 | U8: 6 | V8: 0.3333333333 | W8: 14 | X8: 23 | Y8: 0.6086956522 | Z8: 42 | AA8: 75 | AB8: 0.56 | AC8: 38 | AD8: 71 | AE8: 0.5352112676 | AF8: 37 | AG8: 82 | AH8: 0.4512195122 | AI8: 39 | AJ8: 87 | AK8: 0.4482758621 | AL8: 35 | AM8: 85 | AN8: 0.4117647059 | AO8: 20 | AP8: 52 | AQ8: 0.3846153846 | AR8: 30 | AS8: 87 | AT8: 0.3448275862 | AU8: 34 | AV8: 111 | AW8: 0.3063063063 | AX8: 33 | AY8: 101 | AZ8: 0.3267326733 | BA8: 20 | BB8: 73 | BC8: 0.2739726027 | BD8: 26 | BE8: 90 | BF8: 0.2888888889 | BG8: 27 | BH8: 103 | BI8: 0.2621359223 | BJ8: 38 | BK8: 116 | BL8: 0.3275862069 | BM8: 9 | BN8: 34 | BO8: 0.2647058824 | BP8: 13 | BQ8: 62 | BR8: 0.2096774194 | BS8: 17 | BT8: 77 | BU8: 0.2207792208 | BV8: 19 | BW8: 72 | BX8: 0.2638888889 | BY8: 19 | BZ8: 64 | CA8: 0.296875 | CB8: 15 | CC8: 88 | CD8: 0.1704545455 | CE8: 12 | CF8: 73 | CG8: 0.1643835616
A9: 4 | B9: North Central | C9: 546 | D9: New Denton ISD | E9: 312 | F9: 546 | G9: 0.5714285714 | H9: 446 | I9: 704 | J9: 0.6335227273 | K9: 390 | L9: 626 | M9: 0.6230031949 | N9: 298 | O9: 492 | P9: 0.6056910569 | Q9: 316 | R9: 570 | S9: 0.5543859649 | T9: 540 | U9: 864 | V9: 0.625 | W9: 542 | X9: 879 | Y9: 0.6166097838 | Z9: 433 | AA9: 721 | AB9: 0.600554785 | AC9: 253 | AD9: 458 | AE9: 0.5524017467 | AF9: 666 | AG9: 1096 | AH9: 0.6076642336 | AI9: 708 | AJ9: 1170 | AK9: 0.6051282051 | AL9: 553 | AM9: 898 | AN9: 0.6158129176 | AO9: 253 | AP9: 498 | AQ9: 0.5080321285 | AR9: 585 | AS9: 942 | AT9: 0.6210191083 | AU9: 637 | AV9: 1048 | AW9: 0.6078244275 | AX9: 582 | AY9: 974 | AZ9: 0.5975359343 | BA9: 454 | BB9: 749 | BC9: 0.606141522 | BD9: 791 | BE9: 1177 | BF9: 0.6720475786 | BG9: 792 | BH9: 1187 | BI9: 0.6672283067 | BJ9: 734 | BK9: 1169 | BL9: 0.627887083 | BM9: 414 | BN9: 682 | BO9: 0.6070381232 | BP9: 884 | BQ9: 1338 | BR9: 0.6606875934 | BS9: 907 | BT9: 1397 | BU9: 0.6492483894 | BV9: 891 | BW9: 1411 | BX9: 0.6314670446 | BY9: 471 | BZ9: 906 | CA9: 0.5198675497 | CB9: 582 | CC9: 1187 | CD9: 0.4903117102 | CE9: 531 | CF9: 1171 | CG9: 0.4534585824
A10: 4 | B10: North Central | C10: 547 | D10: Grayson College - North Central | E10: 110 | F10: 147 | G10: 0.7482993197 | H10: 176 | I10: 231 | J10: 0.7619047619 | K10: 180 | L10: 216 | M10: 0.8333333333 | N10: 136 | O10: 170 | P10: 0.8 | Q10: 141 | R10: 168 | S10: 0.8392857143 | T10: 229 | U10: 293 | V10: 0.7815699659 | W10: 209 | X10: 270 | Y10: 0.7740740741 | Z10: 180 | AA10: 243 | AB10: 0.7407407407 | AC10: 95 | AD10: 148 | AE10: 0.6418918919 | AF10: 363 | AG10: 476 | AH10: 0.762605042 | AI10: 332 | AJ10: 443 | AK10: 0.7494356659 | AL10: 271 | AM10: 374 | AN10: 0.7245989305 | AO10: 127 | AP10: 192 | AQ10: 0.6614583333 | AR10: 265 | AS10: 369 | AT10: 0.7181571816 | AU10: 323 | AV10: 463 | AW10: 0.6976241901 | AX10: 327 | AY10: 470 | AZ10: 0.6957446809 | BA10: 211 | BB10: 296 | BC10: 0.7128378378 | BD10: 365 | BE10: 466 | BF10: 0.7832618026 | BG10: 387 | BH10: 485 | BI10: 0.7979381443 | BJ10: 348 | BK10: 448 | BL10: 0.7767857143 | BM10: 172 | BN10: 228 | BO10: 0.7543859649 | BP10: 384 | BQ10: 490 | BR10: 0.7836734694 | BS10: 528 | BT10: 638 | BU10: 0.8275862069 | BV10: 540 | BW10: 641 | BX10: 0.8424336973 | BY10: 346 | BZ10: 494 | CA10: 0.7004048583 | CB10: 385 | CC10: 614 | CD10: 0.6270358306 | CE10: 290 | CF10: 569 | CG10: 0.5096660808
A11: 5 | B11: Tarrant County | C11: 538 | D11: Tarrant County WDB | E11: 639 | F11: 1280 | G11: 0.49921875 | H11: 1183 | I11: 2107 | J11: 0.561461794 | K11: 1162 | L11: 2046 | M11: 0.5679374389 | N11: 866 | O11: 1636 | P11: 0.5293398533 | Q11: 765 | R11: 1415 | S11: 0.5406360424 | T11: 1614 | U11: 2699 | V11: 0.597999259 | W11: 1602 | X11: 2758 | Y11: 0.5808556925 | Z11: 1242 | AA11: 2210 | AB11: 0.5619909502 | AC11: 888 | AD11: 1578 | AE11: 0.5627376426 | AF11: 1760 | AG11: 2888 | AH11: 0.6094182825 | AI11: 1808 | AJ11: 2986 | AK11: 0.6054922974 | AL11: 1415 | AM11: 2470 | AN11: 0.5728744939 | AO11: 614 | AP11: 1187 | AQ11: 0.5172704297 | AR11: 1871 | AS11: 3016 | AT11: 0.6203580902 | AU11: 1872 | AV11: 2915 | AW11: 0.6421955403 | AX11: 1664 | AY11: 2675 | AZ11: 0.6220560748 | BA11: 711 | BB11: 1364 | BC11: 0.5212609971 | BD11: 1714 | BE11: 2956 | BF11: 0.5798376184 | BG11: 1583 | BH11: 2927 | BI11: 0.5408267851 | BJ11: 1414 | BK11: 2805 | BL11: 0.5040998217 | BM11: 671 | BN11: 1520 | BO11: 0.4414473684 | BP11: 1555 | BQ11: 2842 | BR11: 0.5471498944 | BS11: 1507 | BT11: 2765 | BU11: 0.5450271248 | BV11: 1404 | BW11: 2765 | BX11: 0.5077757685 | BY11: 743 | BZ11: 1967 | CA11: 0.3777325877 | CB11: 1203 | CC11: 3059 | CD11: 0.3932657731 | CE11: 1061 | CF11: 2839 | CG11: 0.373723142
A12: 6 | B12: Dallas County | C12: 509 | D12: Dallas County LDB | E12: 1742 | F12: 2521 | G12: 0.6909956367 | H12: 2107 | I12: 3067 | J12: 0.6869905445 | K12: 2323 | L12: 3462 | M12: 0.6709994223 | N12: 2024 | O12: 3039 | P12: 0.6660085554 | Q12: 1068 | R12: 1768 | S12: 0.6040723982 | T12: 1247 | U12: 2102 | V12: 0.593244529 | W12: 1306 | X12: 2421 | Y12: 0.5394465097 | Z12: 1260 | AA12: 2647 | AB12: 0.476010578 | AC12: 1139 | AD12: 2678 | AE12: 0.425317401 | AF12: 1682 | AG12: 3588 | AH12: 0.4687848384 | AI12: 1885 | AJ12: 3899 | AK12: 0.4834572967 | AL12: 1842 | AM12: 3735 | AN12: 0.4931726908 | AO12: 1426 | AP12: 2698 | AQ12: 0.528539659 | AR12: 2429 | AS12: 4037 | AT12: 0.6016844191 | AU12: 2540 | AV12: 4072 | AW12: 0.6237721022 | AX12: 2627 | AY12: 4408 | AZ12: 0.5959618875 | BA12: 1926 | BB12: 3297 | BC12: 0.5841674249 | BD12: 2532 | BE12: 4275 | BF12: 0.5922807018 | BG12: 2510 | BH12: 4096 | BI12: 0.6127929688 | BJ12: 2704 | BK12: 4355 | BL12: 0.6208955224 | BM12: 1905 | BN12: 3281 | BO12: 0.580615666 | BP12: 2449 | BQ12: 3983 | BR12: 0.6148631685 | BS12: 2423 | BT12: 3639 | BU12: 0.6658422644 | BV12: 2744 | BW12: 4086 | BX12: 0.6715614293 | BY12: 1903 | BZ12: 2953 | CA12: 0.6444293938 | CB12: 2554 | CC12: 4053 | CD12: 0.6301505058 | CE12: 2082 | CF12: 3779 | CG12: 0.550939402
A13: 7 | B13: North East Texas | C13: 523 | D13: Paris Junior College, Northeast Texas | E13: 49 | F13: 165 | G13: 0.296969697 | H13: 157 | I13: 376 | J13: 0.4175531915 | K13: 116 | L13: 288 | M13: 0.4027777778 | N13: 94 | O13: 235 | P13: 0.4 | Q13: 50 | R13: 169 | S13: 0.2958579882 | T13: 95 | U13: 271 | V13: 0.3505535055 | W13: 75 | X13: 209 | Y13: 0.3588516746 | Z13: 69 | AA13: 207 | AB13: 0.3333333333 | AC13: 67 | AD13: 201 | AE13: 0.3333333333 | AF13: 102 | AG13: 272 | AH13: 0.375 | AI13: 93 | AJ13: 249 | AK13: 0.3734939759 | AL13: 77 | AM13: 200 | AN13: 0.385 | AO13: 62 | AP13: 152 | AQ13: 0.4078947368 | AR13: 106 | AS13: 244 | AT13: 0.4344262295 | AU13: 100 | AV13: 282 | AW13: 0.3546099291 | AX13: 86 | AY13: 233 | AZ13: 0.3690987124 | BA13: 86 | BB13: 240 | BC13: 0.3583333333 | BD13: 89 | BE13: 247 | BF13: 0.3603238866 | BG13: 97 | BH13: 248 | BI13: 0.3911290323 | BJ13: 81 | BK13: 235 | BL13: 0.3446808511 | BM13: 86 | BN13: 241 | BO13: 0.356846473 | BP13: 114 | BQ13: 259 | BR13: 0.4401544402 | BS13: 109 | BT13: 273 | BU13: 0.3992673993 | BV13: 95 | BW13: 256 | BX13: 0.37109375 | BY13: 76 | BZ13: 234 | CA13: 0.3247863248 | CB13: 81 | CC13: 228 | CD13: 0.3552631579 | CE13: 71 | CF13: 241 | CG13: 0.2946058091
A14: 7 | B14: North East Texas | C14: 543 | D14: Texarkana College | E14: 202 | F14: 384 | G14: 0.5260416667 | H14: 219 | I14: 437 | J14: 0.5011441648 | K14: 220 | L14: 407 | M14: 0.5405405405 | N14: 204 | O14: 361 | P14: 0.5650969529 | Q14: 11 | R14: 150 | S14: 0.07333333333 | T14: 13 | U14: 183 | V14: 0.07103825137 | W14: 3 | X14: 157 | Y14: 0.01910828025 | Z14: 14 | AA14: 164 | AB14: 0.08536585366 | AC14: 16 | AD14: 171 | AE14: 0.09356725146 | AF14: 15 | AG14: 197 | AH14: 0.07614213198 | AI14: 23 | AJ14: 187 | AK14: 0.1229946524 | AL14: 17 | AM14: 161 | AN14: 0.1055900621 | AO14: 13 | AP14: 163 | AQ14: 0.07975460123 | AR14: 12 | AS14: 198 | AT14: 0.06060606061 | AU14: 18 | AV14: 204 | AW14: 0.08823529412 | AX14: 12 | AY14: 186 | AZ14: 0.06451612903 | BA14: 12 | BB14: 138 | BC14: 0.08695652174 | BD14: 12 | BE14: 153 | BF14: 0.07843137255 | BG14: 13 | BH14: 140 | BI14: 0.09285714286 | BJ14: 11 | BK14: 137 | BL14: 0.0802919708 | BM14: 9 | BN14: 101 | BO14: 0.08910891089 | BP14: 24 | BQ14: 135 | BR14: 0.1777777778 | BS14: 16 | BT14: 148 | BU14: 0.1081081081 | BV14: 31 | BW14: 174 | BX14: 0.1781609195 | BY14: 21 | BZ14: 172 | CA14: 0.1220930233 | CB14: 22 | CC14: 203 | CD14: 0.1083743842 | CE14: 18 | CF14: 179 | CG14: 0.1005586592
A15: 8 | B15: East Texas | C15: 519 | D15: Literacy Council of Tyler | E15: 548 | F15: 1320 | G15: 0.4151515152 | H15: 619 | I15: 1466 | J15: 0.4222373806 | K15: 591 | L15: 1350 | M15: 0.4377777778 | N15: 559 | O15: 1382 | P15: 0.4044862518 | Q15: 559 | R15: 1343 | S15: 0.4162323157 | T15: 659 | U15: 1541 | V15: 0.4276443868 | W15: 682 | X15: 1571 | Y15: 0.4341183959 | Z15: 664 | AA15: 1618 | AB15: 0.4103831891 | AC15: 514 | AD15: 1327 | AE15: 0.3873398644 | AF15: 692 | AG15: 1648 | AH15: 0.4199029126 | AI15: 682 | AJ15: 1709 | AK15: 0.39906378 | AL15: 612 | AM15: 1631 | AN15: 0.3752299203 | AO15: 437 | AP15: 1251 | AQ15: 0.3493205436 | AR15: 639 | AS15: 1568 | AT15: 0.4075255102 | AU15: 664 | AV15: 1610 | AW15: 0.4124223602 | AX15: 602 | AY15: 1502 | AZ15: 0.4007989348 | BA15: 480 | BB15: 1260 | BC15: 0.380952381 | BD15: 584 | BE15: 1403 | BF15: 0.4162508909 | BG15: 586 | BH15: 1413 | BI15: 0.4147204529 | BJ15: 609 | BK15: 1513 | BL15: 0.4025115664 | BM15: 538 | BN15: 1276 | BO15: 0.421630094 | BP15: 647 | BQ15: 1484 | BR15: 0.4359838275 | BS15: 586 | BT15: 1402 | BU15: 0.4179743224 | BV15: 573 | BW15: 1416 | BX15: 0.4046610169 | BY15: 433 | BZ15: 1255 | CA15: 0.3450199203 | CB15: 506 | CC15: 1450 | CD15: 0.3489655172 | CE15: 428 | CF15: 1218 | CG15: 0.3513957307
A16: 9 | B16: West Central | C16: 501 | D16: Abilene ISD | E16: 14 | F16: 198 | G16: 0.07070707071 | H16: 19 | I16: 278 | J16: 0.06834532374 | K16: 18 | L16: 218 | M16: 0.08256880734 | N16: 18 | O16: 218 | P16: 0.08256880734 | Q16: 26 | R16: 318 | S16: 0.08176100629 | T16: 47 | U16: 481 | V16: 0.09771309771 | W16: 48 | X16: 445 | Y16: 0.1078651685 | Z16: 34 | AA16: 397 | AB16: 0.08564231738 | AC16: 11 | AD16: 192 | AE16: 0.05729166667 | AF16: 29 | AG16: 351 | AH16: 0.08262108262 | AI16: 30 | AJ16: 385 | AK16: 0.07792207792 | AL16: 17 | AM16: 334 | AN16: 0.05089820359 | AO16: 32 | AP16: 337 | AQ16: 0.09495548961 | AR16: 61 | AS16: 553 | AT16: 0.1103074141 | AU16: 60 | AV16: 522 | AW16: 0.1149425287 | AX16: 60 | AY16: 484 | AZ16: 0.1239669421 | BA16: 52 | BB16: 381 | BC16: 0.1364829396 | BD16: 67 | BE16: 575 | BF16: 0.1165217391 | BG16: 68 | BH16: 528 | BI16: 0.1287878788 | BJ16: 58 | BK16: 463 | BL16: 0.1252699784 | BM16: 35 | BN16: 324 | BO16: 0.1080246914 | BP16: 78 | BQ16: 554 | BR16: 0.1407942238 | BS16: 73 | BT16: 482 | BU16: 0.1514522822 | BV16: 54 | BW16: 417 | BX16: 0.1294964029 | BY16: 40 | BZ16: 296 | CA16: 0.1351351351 | CB16: 61 | CC16: 448 | CD16: 0.1361607143 | CE16: 42 | CF16: 388 | CG16: 0.1082474227
A17: 10 | B17: Borderplex | C17: 544 | D17: Ysleta ISD | E17: 427 | F17: 1881 | G17: 0.2270069112 | H17: 540 | I17: 2267 | J17: 0.2382002647 | K17: 536 | L17: 2387 | M17: 0.2245496439 | N17: 428 | O17: 1997 | P17: 0.2143214822 | Q17: 333 | R17: 1798 | S17: 0.1852057842 | T17: 391 | U17: 1969 | V17: 0.1985779584 | W17: 378 | X17: 2085 | Y17: 0.181294964 | Z17: 308 | AA17: 1739 | AB17: 0.1771132835 | AC17: 303 | AD17: 1752 | AE17: 0.1729452055 | AF17: 335 | AG17: 1893 | AH17: 0.176967776 | AI17: 341 | AJ17: 1963 | AK17: 0.1737137035 | AL17: 271 | AM17: 1629 | AN17: 0.1663597299 | AO17: 217 | AP17: 1482 | AQ17: 0.1464237517 | AR17: 275 | AS17: 1764 | AT17: 0.1558956916 | AU17: 302 | AV17: 2028 | AW17: 0.1489151874 | AX17: 221 | AY17: 1804 | AZ17: 0.1225055432 | BA17: 177 | BB17: 1565 | BC17: 0.1130990415 | BD17: 188 | BE17: 1673 | BF17: 0.1123729827 | BG17: 213 | BH17: 2074 | BI17: 0.1027000964 | BJ17: 179 | BK17: 1827 | BL17: 0.09797482211 | BM17: 146 | BN17: 1310 | BO17: 0.1114503817 | BP17: 176 | BQ17: 1750 | BR17: 0.1005714286 | BS17: 211 | BT17: 1926 | BU17: 0.1095534787 | BV17: 201 | BW17: 1881 | BX17: 0.1068580542 | BY17: 222 | BZ17: 1745 | CA17: 0.1272206304 | CB17: 243 | CC17: 2069 | CD17: 0.1174480425 | CE17: 228 | CF17: 2023 | CG17: 0.1127039051
A18: 11 | B18: Permian Basin | C18: 517 | D18: Howard College, Permian Basin | E18: 88 | F18: 140 | G18: 0.6285714286 | H18: 104 | I18: 171 | J18: 0.6081871345 | K18: 94 | L18: 155 | M18: 0.6064516129 | N18: 81 | O18: 137 | P18: 0.5912408759 | Q18: 81 | R18: 111 | S18: 0.7297297297 | T18: 73 | U18: 120 | V18: 0.6083333333 | W18: 65 | X18: 111 | Y18: 0.5855855856 | Z18: 66 | AA18: 125 | AB18: 0.528 | AC18: 61 | AD18: 118 | AE18: 0.5169491525 | AF18: 63 | AG18: 132 | AH18: 0.4772727273 | AI18: 64 | AJ18: 131 | AK18: 0.4885496183 | AL18: 28 | AM18: 92 | AN18: 0.3043478261 | AO18: 45 | AP18: 96 | AQ18: 0.46875 | AR18: 56 | AS18: 120 | AT18: 0.4666666667 | AU18: 53 | AV18: 110 | AW18: 0.4818181818 | AX18: 59 | AY18: 109 | AZ18: 0.5412844037 | BA18: 29 | BB18: 73 | BC18: 0.397260274 | BD18: 26 | BE18: 86 | BF18: 0.3023255814 | BG18: 35 | BH18: 100 | BI18: 0.35 | BJ18: 124 | BK18: 169 | BL18: 0.7337278107 | BM18: 140 | BN18: 183 | BO18: 0.7650273224 | BP18: 140 | BQ18: 182 | BR18: 0.7692307692 | BS18: 120 | BT18: 168 | BU18: 0.7142857143 | BV18: 106 | BW18: 155 | BX18: 0.6838709677 | BY18: 85 | BZ18: 120 | CA18: 0.7083333333 | CB18: 95 | CC18: 154 | CD18: 0.6168831169 | CE18: 101 | CF18: 167 | CG18: 0.6047904192
A19: 11 | B19: Permian Basin | C19: 525 | D19: Region 17 ESC, Permian Basin | E19: 14 | F19: 47 | G19: 0.2978723404 | H19: 18 | I19: 53 | J19: 0.3396226415 | K19: 17 | L19: 56 | M19: 0.3035714286 | N19: 15 | O19: 53 | P19: 0.2830188679 | Q19: 49 | R19: 110 | S19: 0.4454545455 | T19: 59 | U19: 135 | V19: 0.437037037 | W19: 48 | X19: 131 | Y19: 0.3664122137 | Z19: 41 | AA19: 113 | AB19: 0.3628318584 | AC19: 46 | AD19: 100 | AE19: 0.46 | AF19: 55 | AG19: 132 | AH19: 0.4166666667 | AI19: 50 | AJ19: 125 | AK19: 0.4 | AL19: 44 | AM19: 97 | AN19: 0.4536082474 | AO19: 43 | AP19: 107 | AQ19: 0.4018691589 | AR19: 51 | AS19: 121 | AT19: 0.4214876033 | AU19: 47 | AV19: 111 | AW19: 0.4234234234 | AX19: 28 | AY19: 77 | AZ19: 0.3636363636 | BA19: 39 | BB19: 101 | BC19: 0.3861386139 | BD19: 56 | BE19: 131 | BF19: 0.427480916 | BG19: 55 | BH19: 115 | BI19: 0.4782608696 | BJ19: 44 | BK19: 94 | BL19: 0.4680851064 | BM19: 64 | BN19: 126 | BO19: 0.5079365079 | BP19: 68 | BQ19: 131 | BR19: 0.5190839695 | BS19: 55 | BT19: 109 | BU19: 0.504587156 | BV19: 47 | BW19: 83 | BX19: 0.5662650602 | BY19: 51 | BZ19: 101 | CA19: 0.504950495 | CB19: 52 | CC19: 107 | CD19: 0.4859813084 | CE19: 43 | CF19: 99 | CG19: 0.4343434343
A20: 11 | B20: Permian Basin | C20: 539 | D20: Midland College | E20: 69 | F20: 292 | G20: 0.2363013699 | H20: 74 | I20: 344 | J20: 0.2151162791 | K20: 85 | L20: 351 | M20: 0.2421652422 | N20: 68 | O20: 261 | P20: 0.2605363985 | Q20: 87 | R20: 352 | S20: 0.2471590909 | T20: 104 | U20: 459 | V20: 0.2265795207 | W20: 149 | X20: 510 | Y20: 0.2921568627 | Z20: 105 | AA20: 418 | AB20: 0.2511961722 | AC20: 140 | AD20: 498 | AE20: 0.281124498 | AF20: 206 | AG20: 628 | AH20: 0.3280254777 | AI20: 136 | AJ20: 490 | AK20: 0.2775510204 | AL20: 64 | AM20: 280 | AN20: 0.2285714286 | AO20: 119 | AP20: 503 | AQ20: 0.2365805169 | AR20: 158 | AS20: 601 | AT20: 0.2628951747 | AU20: 137 | AV20: 547 | AW20: 0.2504570384 | AX20: 94 | AY20: 408 | AZ20: 0.2303921569 | BA20: 77 | BB20: 385 | BC20: 0.2 | BD20: 146 | BE20: 557 | BF20: 0.2621184919 | BG20: 116 | BH20: 465 | BI20: 0.2494623656 | BJ20: 99 | BK20: 379 | BL20: 0.2612137203 | BM20: 80 | BN20: 394 | BO20: 0.2030456853 | BP20: 93 | BQ20: 442 | BR20: 0.2104072398 | BS20: 110 | BT20: 481 | BU20: 0.2286902287 | BV20: 84 | BW20: 403 | BX20: 0.2084367246 | BY20: 133 | BZ20: 571 | CA20: 0.2329246935 | CB20: 120 | CC20: 487 | CD20: 0.2464065708 | CE20: 156 | CF20: 580 | CG20: 0.2689655172
A21: 11 | B21: Permian Basin | C21: 545 | D21: Odessa College | E21: 114 | F21: 432 | G21: 0.2638888889 | H21: 104 | I21: 426 | J21: 0.2441314554 | K21: 98 | L21: 360 | M21: 0.2722222222 | N21: 130 | O21: 393 | P21: 0.3307888041 | Q21: 95 | R21: 318 | S21: 0.2987421384 | T21: 104 | U21: 417 | V21: 0.2494004796 | W21: 131 | X21: 580 | Y21: 0.225862069 | Z21: 117 | AA21: 517 | AB21: 0.2263056093 | AC21: 97 | AD21: 424 | AE21: 0.2287735849 | AF21: 92 | AG21: 444 | AH21: 0.2072072072 | AI21: 118 | AJ21: 606 | AK21: 0.1947194719 | AL21: 131 | AM21: 588 | AN21: 0.2227891156 | AO21: 121 | AP21: 493 | AQ21: 0.2454361055 | AR21: 111 | AS21: 550 | AT21: 0.2018181818 | AU21: 118 | AV21: 609 | AW21: 0.1937602627 | AX21: 116 | AY21: 547 | AZ21: 0.2120658135 | BA21: 101 | BB21: 449 | BC21: 0.2249443207 | BD21: 87 | BE21: 486 | BF21: 0.1790123457 | BG21: 120 | BH21: 591 | BI21: 0.2030456853 | BJ21: 132 | BK21: 562 | BL21: 0.2348754448 | BM21: 105 | BN21: 467 | BO21: 0.2248394004 | BP21: 96 | BQ21: 509 | BR21: 0.1886051081 | BS21: 118 | BT21: 555 | BU21: 0.2126126126 | BV21: 129 | BW21: 530 | BX21: 0.2433962264 | BY21: 96 | BZ21: 423 | CA21: 0.2269503546 | CB21: 93 | CC21: 454 | CD21: 0.204845815 | CE21: 101 | CF21: 486 | CG21: 0.20781893
A22: 12 | B22: Concho Valley | C22: 516 | D22: Howard College, Concho Valley | E22: 86 | F22: 277 | G22: 0.3104693141 | H22: 116 | I22: 358 | J22: 0.3240223464 | K22: 166 | L22: 380 | M22: 0.4368421053 | N22: 145 | O22: 354 | P22: 0.4096045198 | Q22: 127 | R22: 267 | S22: 0.4756554307 | T22: 145 | U22: 305 | V22: 0.4754098361 | W22: 133 | X22: 301 | Y22: 0.4418604651 | Z22: 87 | AA22: 272 | AB22: 0.3198529412 | AC22: 73 | AD22: 222 | AE22: 0.3288288288 | AF22: 95 | AG22: 294 | AH22: 0.3231292517 | AI22: 100 | AJ22: 333 | AK22: 0.3003003003 | AL22: 108 | AM22: 346 | AN22: 0.3121387283 | AO22: 60 | AP22: 245 | AQ22: 0.2448979592 | AR22: 61 | AS22: 265 | AT22: 0.2301886792 | AU22: 63 | AV22: 275 | AW22: 0.2290909091 | AX22: 15 | AY22: 216 | AZ22: 0.06944444444 | BA22: 10 | BB22: 222 | BC22: 0.04504504505 | BD22: 12 | BE22: 272 | BF22: 0.04411764706 | BG22: 12 | BH22: 295 | BI22: 0.0406779661 | BJ22: 12 | BK22: 337 | BL22: 0.03560830861 | BM22: 16 | BN22: 241 | BO22: 0.06639004149 | BP22: 15 | BQ22: 264 | BR22: 0.05681818182 | BS22: 15 | BT22: 253 | BU22: 0.05928853755 | BV22: 17 | BW22: 319 | BX22: 0.05329153605 | BY22: 15 | BZ22: 244 | CA22: 0.06147540984 | CB22: 23 | CC22: 299 | CD22: 0.07692307692 | CE22: 25 | CF22: 251 | CG22: 0.09960159363
A23: 13 | B23: Heart of Texas | C23: 520 | D23: McLennan Community College | E23: 277 | F23: 810 | G23: 0.3419753086 | H23: 283 | I23: 885 | J23: 0.3197740113 | K23: 256 | L23: 656 | M23: 0.3902439024 | N23: 242 | O23: 668 | P23: 0.3622754491 | Q23: 173 | R23: 561 | S23: 0.3083778966 | T23: 261 | U23: 697 | V23: 0.3744619799 | W23: 210 | X23: 591 | Y23: 0.3553299492 | Z23: 159 | AA23: 481 | AB23: 0.3305613306 | AC23: 152 | AD23: 406 | AE23: 0.3743842365 | AF23: 269 | AG23: 616 | AH23: 0.4366883117 | AI23: 230 | AJ23: 631 | AK23: 0.3645007924 | AL23: 190 | AM23: 597 | AN23: 0.3182579564 | AO23: 179 | AP23: 548 | AQ23: 0.3266423358 | AR23: 236 | AS23: 682 | AT23: 0.3460410557 | AU23: 223 | AV23: 580 | AW23: 0.3844827586 | AX23: 231 | AY23: 590 | AZ23: 0.3915254237 | BA23: 215 | BB23: 627 | BC23: 0.3429027113 | BD23: 268 | BE23: 745 | BF23: 0.3597315436 | BG23: 188 | BH23: 601 | BI23: 0.31281198 | BJ23: 166 | BK23: 557 | BL23: 0.2980251346 | BM23: 147 | BN23: 485 | BO23: 0.3030927835 | BP23: 179 | BQ23: 581 | BR23: 0.3080895009 | BS23: 143 | BT23: 522 | BU23: 0.2739463602 | BV23: 123 | BW23: 497 | BX23: 0.2474849095 | BY23: 119 | BZ23: 462 | CA23: 0.2575757576 | CB23: 143 | CC23: 594 | CD23: 0.2407407407 | CE23: 163 | CF23: 555 | CG23: 0.2936936937
A24: 14 | B24: Capital Area | C24: 504 | D24: Austin Community College | E24: 682 | F24: 1522 | G24: 0.4480946124 | H24: 816 | I24: 1785 | J24: 0.4571428571 | K24: 996 | L24: 1811 | M24: 0.5499723909 | N24: 825 | O24: 1637 | P24: 0.5039706781 | Q24: 656 | R24: 1446 | S24: 0.4536652835 | T24: 972 | U24: 2023 | V24: 0.4804745428 | W24: 1049 | X24: 2012 | Y24: 0.5213717694 | Z24: 920 | AA24: 1816 | AB24: 0.5066079295 | AC24: 795 | AD24: 1888 | AE24: 0.4210805085 | AF24: 1046 | AG24: 2312 | AH24: 0.4524221453 | AI24: 1112 | AJ24: 2473 | AK24: 0.4496562879 | AL24: 1031 | AM24: 2277 | AN24: 0.4527887571 | AO24: 812 | AP24: 1834 | AQ24: 0.4427480916 | AR24: 1260 | AS24: 2529 | AT24: 0.4982206406 | AU24: 1224 | AV24: 2581 | AW24: 0.4742347927 | AX24: 1126 | AY24: 2525 | AZ24: 0.4459405941 | BA24: 819 | BB24: 2060 | BC24: 0.3975728155 | BD24: 1186 | BE24: 2691 | BF24: 0.4407283538 | BG24: 1130 | BH24: 2598 | BI24: 0.4349499615 | BJ24: 1046 | BK24: 2593 | BL24: 0.4033937524 | BM24: 701 | BN24: 1967 | BO24: 0.3563802745 | BP24: 1047 | BQ24: 2634 | BR24: 0.3974943052 | BS24: 1036 | BT24: 2558 | BU24: 0.4050039093 | BV24: 1010 | BW24: 2721 | BX24: 0.3711870636 | BY24: 754 | BZ24: 2212 | CA24: 0.3408679928 | CB24: 1054 | CC24: 2907 | CD24: 0.3625730994 | CE24: 985 | CF24: 2772 | CG24: 0.3553391053
A25: 15 | B25: Rural Capital | C25: 508 | D25: Community Action Inc. | E25: 119 | F25: 334 | G25: 0.3562874251 | H25: 224 | I25: 544 | J25: 0.4117647059 | K25: 186 | L25: 479 | M25: 0.388308977 | N25: 145 | O25: 427 | P25: 0.3395784543 | Q25: 133 | R25: 379 | S25: 0.3509234828 | T25: 211 | U25: 563 | V25: 0.3747779751 | W25: 198 | X25: 547 | Y25: 0.3619744059 | Z25: 163 | AA25: 463 | AB25: 0.3520518359 | AC25: 101 | AD25: 362 | AE25: 0.2790055249 | AF25: 179 | AG25: 552 | AH25: 0.3242753623 | AI25: 305 | AJ25: 730 | AK25: 0.4178082192 | AL25: 233 | AM25: 599 | AN25: 0.3889816361 | AO25: 194 | AP25: 451 | AQ25: 0.4301552106 | AR25: 439 | AS25: 847 | AT25: 0.5182998819 | AU25: 492 | AV25: 1000 | AW25: 0.492 | AX25: 447 | AY25: 970 | AZ25: 0.4608247423 | BA25: 311 | BB25: 770 | BC25: 0.4038961039 | BD25: 585 | BE25: 1227 | BF25: 0.4767726161 | BG25: 480 | BH25: 1072 | BI25: 0.447761194 | BJ25: 447 | BK25: 1096 | BL25: 0.4078467153 | BM25: 355 | BN25: 980 | BO25: 0.362244898 | BP25: 554 | BQ25: 1375 | BR25: 0.4029090909 | BS25: 553 | BT25: 1425 | BU25: 0.3880701754 | BV25: 469 | BW25: 1297 | BX25: 0.3616037008 | BY25: 351 | BZ25: 1020 | CA25: 0.3441176471 | CB25: 519 | CC25: 1446 | CD25: 0.3589211618 | CE25: 518 | CF25: 1435 | CG25: 0.3609756098
A26: 16 | B26: Brazos Valley | C26: 505 | D26: Brazos Valley COG | E26: 449 | F26: 860 | G26: 0.5220930233 | H26: 852 | I26: 1611 | J26: 0.5288640596 | K26: 873 | L26: 1517 | M26: 0.5754779169 | N26: 725 | O26: 1298 | P26: 0.5585516179 | Q26: 236 | R26: 461 | S26: 0.5119305857 | T26: 421 | U26: 793 | V26: 0.5308953342 | W26: 469 | X26: 888 | Y26: 0.5281531532 | Z26: 336 | AA26: 682 | AB26: 0.4926686217 | AC26: 105 | AD26: 328 | AE26: 0.3201219512 | AF26: 276 | AG26: 644 | AH26: 0.4285714286 | AI26: 363 | AJ26: 750 | AK26: 0.484 | AL26: 310 | AM26: 631 | AN26: 0.4912836767 | AO26: 133 | AP26: 317 | AQ26: 0.4195583596 | AR26: 244 | AS26: 526 | AT26: 0.463878327 | AU26: 286 | AV26: 621 | AW26: 0.460547504 | AX26: 294 | AY26: 612 | AZ26: 0.4803921569 | BA26: 280 | BB26: 562 | BC26: 0.4982206406 | BD26: 335 | BE26: 668 | BF26: 0.501497006 | BG26: 321 | BH26: 667 | BI26: 0.4812593703 | BJ26: 288 | BK26: 637 | BL26: 0.4521193093 | BM26: 27 | BN26: 84 | BO26: 0.3214285714 | BP26: 45 | BQ26: 156 | BR26: 0.2884615385 | BS26: 90 | BT26: 245 | BU26: 0.3673469388 | BV26: 92 | BW26: 234 | BX26: 0.3931623932 | BY26: 124 | BZ26: 261 | CA26: 0.4750957854 | CB26: 159 | CC26: 327 | CD26: 0.4862385321 | CE26: 140 | CF26: 309 | CG26: 0.4530744337
A27: 17 | B27: Deep East Texas | C27: 503 | D27: Angelina College | E27: 101 | F27: 270 | G27: 0.3740740741 | H27: 139 | I27: 351 | J27: 0.396011396 | K27: 121 | L27: 307 | M27: 0.3941368078 | N27: 120 | O27: 301 | P27: 0.3986710963 | Q27: 126 | R27: 350 | S27: 0.36 | T27: 180 | U27: 468 | V27: 0.3846153846 | W27: 199 | X27: 547 | Y27: 0.3638025594 | Z27: 200 | AA27: 580 | AB27: 0.3448275862 | AC27: 166 | AD27: 504 | AE27: 0.3293650794 | AF27: 191 | AG27: 556 | AH27: 0.3435251799 | AI27: 171 | AJ27: 591 | AK27: 0.2893401015 | AL27: 178 | AM27: 644 | AN27: 0.2763975155 | AO27: 139 | AP27: 473 | AQ27: 0.2938689218 | AR27: 166 | AS27: 552 | AT27: 0.3007246377 | AU27: 160 | AV27: 525 | AW27: 0.3047619048 | AX27: 167 | AY27: 580 | AZ27: 0.2879310345 | BA27: 164 | BB27: 599 | BC27: 0.2737896494 | BD27: 175 | BE27: 632 | BF27: 0.2768987342 | BG27: 165 | BH27: 544 | BI27: 0.3033088235 | BJ27: 187 | BK27: 547 | BL27: 0.3418647166 | BM27: 153 | BN27: 402 | BO27: 0.3805970149 | BP27: 167 | BQ27: 461 | BR27: 0.3622559653 | BS27: 153 | BT27: 367 | BU27: 0.416893733 | BV27: 148 | BW27: 404 | BX27: 0.3663366337 | BY27: 98 | BZ27: 374 | CA27: 0.2620320856 | CB27: 108 | CC27: 477 | CD27: 0.2264150943 | CE27: 109 | CF27: 396 | CG27: 0.2752525253
A28: 18 | B28: Southeast Texas | C28: 527 | D28: Region 5 ESC | E28: 21 | F28: 131 | G28: 0.1603053435 | H28: 16 | I28: 158 | J28: 0.1012658228 | K28: 11 | L28: 91 | M28: 0.1208791209 | N28: 13 | O28: 97 | P28: 0.1340206186 | Q28: 26 | R28: 158 | S28: 0.164556962 | T28: 131 | U28: 378 | V28: 0.3465608466 | W28: 128 | X28: 425 | Y28: 0.3011764706 | Z28: 149 | AA28: 478 | AB28: 0.3117154812 | AC28: 171 | AD28: 465 | AE28: 0.3677419355 | AF28: 214 | AG28: 539 | AH28: 0.3970315399 | AI28: 193 | AJ28: 526 | AK28: 0.3669201521 | AL28: 196 | AM28: 520 | AN28: 0.3769230769 | AO28: 213 | AP28: 538 | AQ28: 0.3959107807 | AR28: 293 | AS28: 627 | AT28: 0.4673046252 | AU28: 285 | AV28: 614 | AW28: 0.4641693811 | AX28: 276 | AY28: 642 | AZ28: 0.4299065421 | BA28: 124 | BB28: 313 | BC28: 0.3961661342 | BD28: 235 | BE28: 545 | BF28: 0.4311926606 | BG28: 206 | BH28: 465 | BI28: 0.4430107527 | BJ28: 238 | BK28: 541 | BL28: 0.4399260628 | BM28: 273 | BN28: 503 | BO28: 0.5427435388 | BP28: 351 | BQ28: 732 | BR28: 0.4795081967 | BS28: 271 | BT28: 555 | BU28: 0.4882882883 | BV28: 310 | BW28: 611 | BX28: 0.5073649755 | BY28: 181 | BZ28: 459 | CA28: 0.394335512 | CB28: 222 | CC28: 781 | CD28: 0.2842509603 | CE28: 208 | CF28: 525 | CG28: 0.3961904762
A29: 19 | B29: Golden Crescent | C29: 532 | D29: Victoria College | E29: 57 | F29: 212 | G29: 0.2688679245 | H29: 90 | I29: 300 | J29: 0.3 | K29: 89 | L29: 286 | M29: 0.3111888112 | N29: 92 | O29: 303 | P29: 0.303630363 | Q29: 40 | R29: 193 | S29: 0.207253886 | T29: 79 | U29: 333 | V29: 0.2372372372 | W29: 98 | X29: 403 | Y29: 0.2431761787 | Z29: 133 | AA29: 432 | AB29: 0.3078703704 | AC29: 55 | AD29: 262 | AE29: 0.2099236641 | AF29: 102 | AG29: 496 | AH29: 0.2056451613 | AI29: 144 | AJ29: 574 | AK29: 0.2508710801 | AL29: 131 | AM29: 507 | AN29: 0.258382643 | AO29: 43 | AP29: 244 | AQ29: 0.1762295082 | AR29: 89 | AS29: 416 | AT29: 0.2139423077 | AU29: 91 | AV29: 474 | AW29: 0.1919831224 | AX29: 93 | AY29: 535 | AZ29: 0.1738317757 | BA29: 15 | BB29: 170 | BC29: 0.08823529412 | BD29: 32 | BE29: 318 | BF29: 0.1006289308 | BG29: 51 | BH29: 385 | BI29: 0.1324675325 | BJ29: 57 | BK29: 474 | BL29: 0.1202531646 | BM29: 46 | BN29: 323 | BO29: 0.1424148607 | BP29: 79 | BQ29: 468 | BR29: 0.1688034188 | BS29: 83 | BT29: 441 | BU29: 0.1882086168 | BV29: 87 | BW29: 466 | BX29: 0.186695279 | BY29: 63 | BZ29: 354 | CA29: 0.1779661017 | CB29: 73 | CC29: 379 | CD29: 0.1926121372 | CE29: 74 | CF29: 384 | CG29: 0.1927083333
A30: 20 | B30: Alamo | C30: 512 | D30: Region 20 ESC | E30: 868 | F30: 2303 | G30: 0.376899696 | H30: 1465 | I30: 3636 | J30: 0.4029152915 | K30: 1429 | L30: 3298 | M30: 0.4332929048 | N30: 1210 | O30: 2852 | P30: 0.4242636746 | Q30: 711 | R30: 1784 | S30: 0.3985426009 | T30: 1629 | U30: 4144 | V30: 0.3930984556 | W30: 1728 | X30: 4540 | Y30: 0.3806167401 | Z30: 1442 | AA30: 3971 | AB30: 0.3631327122 | AC30: 1074 | AD30: 2923 | AE30: 0.3674307219 | AF30: 1822 | AG30: 4727 | AH30: 0.3854453142 | AI30: 1877 | AJ30: 4697 | AK30: 0.3996167767 | AL30: 1460 | AM30: 3745 | AN30: 0.3898531375 | AO30: 1136 | AP30: 2577 | AQ30: 0.440822662 | AR30: 1808 | AS30: 4079 | AT30: 0.4432458936 | AU30: 1848 | AV30: 4307 | AW30: 0.4290689575 | AX30: 1544 | AY30: 3632 | AZ30: 0.4251101322 | BA30: 891 | BB30: 2170 | BC30: 0.4105990783 | BD30: 1725 | BE30: 3743 | BF30: 0.4608602725 | BG30: 1727 | BH30: 3851 | BI30: 0.4484549468 | BJ30: 1633 | BK30: 3805 | BL30: 0.4291721419 | BM30: 1257 | BN30: 2882 | BO30: 0.4361554476 | BP30: 1674 | BQ30: 3792 | BR30: 0.4414556962 | BS30: 1800 | BT30: 3845 | BU30: 0.4681404421 | BV30: 1720 | BW30: 3745 | BX30: 0.4592790387 | BY30: 1186 | BZ30: 2900 | CA30: 0.4089655172 | CB30: 1677 | CC30: 4123 | CD30: 0.4067426631 | CE30: 1482 | CF30: 3908 | CG30: 0.3792221085
A31: 21 | B31: South Texas | C31: 518 | D31: Laredo College | E31: 198 | F31: 743 | G31: 0.266487214 | H31: 198 | I31: 736 | J31: 0.2690217391 | K31: 229 | L31: 808 | M31: 0.2834158416 | N31: 196 | O31: 684 | P31: 0.2865497076 | Q31: 232 | R31: 792 | S31: 0.2929292929 | T31: 231 | U31: 825 | V31: 0.28 | W31: 280 | X31: 977 | Y31: 0.286591607 | Z31: 298 | AA31: 999 | AB31: 0.2982982983 | AC31: 427 | AD31: 1233 | AE31: 0.3463098135 | AF31: 427 | AG31: 1195 | AH31: 0.3573221757 | AI31: 467 | AJ31: 1348 | AK31: 0.3464391691 | AL31: 371 | AM31: 1052 | AN31: 0.352661597 | AO31: 325 | AP31: 962 | AQ31: 0.3378378378 | AR31: 318 | AS31: 920 | AT31: 0.3456521739 | AU31: 304 | AV31: 849 | AW31: 0.3580683157 | AX31: 288 | AY31: 938 | AZ31: 0.3070362473 | BA31: 268 | BB31: 987 | BC31: 0.2715298886 | BD31: 273 | BE31: 974 | BF31: 0.2802874743 | BG31: 271 | BH31: 945 | BI31: 0.2867724868 | BJ31: 259 | BK31: 840 | BL31: 0.3083333333 | BM31: 294 | BN31: 964 | BO31: 0.3049792531 | BP31: 327 | BQ31: 993 | BR31: 0.329305136 | BS31: 299 | BT31: 911 | BU31: 0.3282107574 | BV31: 262 | BW31: 802 | BX31: 0.3266832918 | BY31: 286 | BZ31: 1022 | CA31: 0.2798434442 | CB31: 262 | CC31: 917 | CD31: 0.2857142857 | CE31: 232 | CF31: 808 | CG31: 0.2871287129
A32: 22 | B32: Coastal Bend | C32: 542 | D32: Region 2 ESC | E32: 0 | F32: 134 | G32: 0 | H32: 1 | I32: 175 | J32: 0.005714285714 | K32: 2 | L32: 142 | M32: 0.01408450704 | N32: 1 | O32: 123 | P32: 0.008130081301 | Q32: 96 | R32: 595 | S32: 0.1613445378 | T32: 108 | U32: 895 | V32: 0.1206703911 | W32: 112 | X32: 1062 | Y32: 0.1054613936 | Z32: 119 | AA32: 1158 | AB32: 0.1027633851 | AC32: 122 | AD32: 900 | AE32: 0.1355555556 | AF32: 159 | AG32: 1264 | AH32: 0.1257911392 | AI32: 182 | AJ32: 1431 | AK32: 0.1271837876 | AL32: 167 | AM32: 1253 | AN32: 0.1332801277 | AO32: 144 | AP32: 929 | AQ32: 0.1550053821 | AR32: 178 | AS32: 1022 | AT32: 0.1741682975 | AU32: 167 | AV32: 1114 | AW32: 0.1499102334 | AX32: 122 | AY32: 983 | AZ32: 0.1241098678 | BA32: 73 | BB32: 688 | BC32: 0.1061046512 | BD32: 97 | BE32: 918 | BF32: 0.105664488 | BG32: 103 | BH32: 983 | BI32: 0.1047812818 | BJ32: 118 | BK32: 1049 | BL32: 0.1124880839 | BM32: 53 | BN32: 139 | BO32: 0.381294964 | BP32: 73 | BQ32: 425 | BR32: 0.1717647059 | BS32: 131 | BT32: 664 | BU32: 0.1972891566 | BV32: 203 | BW32: 836 | BX32: 0.2428229665 | BY32: 141 | BZ32: 717 | CA32: 0.1966527197 | CB32: 141 | CC32: 796 | CD32: 0.1771356784 | CE32: 141 | CF32: 873 | CG32: 0.1615120275
A33: 23 | B33: Lower Rio | C33: 524 | D33: Region 1 ESC | E33: 309 | F33: 959 | G33: 0.3222106361 | H33: 470 | I33: 1407 | J33: 0.3340440654 | K33: 480 | L33: 1348 | M33: 0.3560830861 | N33: 405 | O33: 1095 | P33: 0.3698630137 | Q33: 590 | R33: 1483 | S33: 0.3978422117 | T33: 998 | U33: 2337 | V33: 0.4270432178 | W33: 1219 | X33: 2768 | Y33: 0.4403901734 | Z33: 1072 | AA33: 2297 | AB33: 0.46669569 | AC33: 888 | AD33: 1880 | AE33: 0.4723404255 | AF33: 1384 | AG33: 3034 | AH33: 0.4561634806 | AI33: 1383 | AJ33: 3242 | AK33: 0.4265885256 | AL33: 1158 | AM33: 2782 | AN33: 0.4162473041 | AO33: 1050 | AP33: 2378 | AQ33: 0.4415475189 | AR33: 1284 | AS33: 2906 | AT33: 0.4418444597 | AU33: 1273 | AV33: 3043 | AW33: 0.4183371673 | AX33: 1054 | AY33: 2704 | AZ33: 0.3897928994 | BA33: 854 | BB33: 2252 | BC33: 0.3792184725 | BD33: 1165 | BE33: 2967 | BF33: 0.392652511 | BG33: 1087 | BH33: 2756 | BI33: 0.3944121916 | BJ33: 936 | BK33: 2429 | BL33: 0.3853437629 | BM33: 727 | BN33: 1837 | BO33: 0.3957539467 | BP33: 1012 | BQ33: 2595 | BR33: 0.3899807322 | BS33: 995 | BT33: 2593 | BU33: 0.3837254146 | BV33: 850 | BW33: 2313 | BX33: 0.3674881107 | BY33: 642 | BZ33: 1767 | CA33: 0.363327674 | CB33: 838 | CC33: 2363 | CD33: 0.3546339399 | CE33: 829 | CF33: 2325 | CG33: 0.3565591398
A34: 24 | B34: Cameron County | C34: 506 | D34: Brownsville ISD | E34: 256 | F34: 796 | G34: 0.3216080402 | H34: 271 | I34: 854 | J34: 0.3173302108 | K34: 298 | L34: 908 | M34: 0.3281938326 | N34: 229 | O34: 671 | P34: 0.3412816692 | Q34: 243 | R34: 671 | S34: 0.3621460507 | T34: 364 | U34: 963 | V34: 0.3779854621 | W34: 501 | X34: 1279 | Y34: 0.3917122752 | Z34: 444 | AA34: 1118 | AB34: 0.397137746 | AC34: 449 | AD34: 1078 | AE34: 0.4165120594 | AF34: 603 | AG34: 1505 | AH34: 0.4006644518 | AI34: 614 | AJ34: 1569 | AK34: 0.3913320586 | AL34: 506 | AM34: 1269 | AN34: 0.3987391647 | AO34: 411 | AP34: 947 | AQ34: 0.4340021119 | AR34: 618 | AS34: 1436 | AT34: 0.430362117 | AU34: 553 | AV34: 1478 | AW34: 0.3741542625 | AX34: 422 | AY34: 1209 | AZ34: 0.3490488007 | BA34: 362 | BB34: 972 | BC34: 0.3724279835 | BD34: 483 | BE34: 1373 | BF34: 0.3517844137 | BG34: 432 | BH34: 1352 | BI34: 0.3195266272 | BJ34: 324 | BK34: 1100 | BL34: 0.2945454545 | BM34: 282 | BN34: 920 | BO34: 0.3065217391 | BP34: 346 | BQ34: 1203 | BR34: 0.2876142976 | BS34: 314 | BT34: 1105 | BU34: 0.2841628959 | BV34: 294 | BW34: 1060 | BX34: 0.2773584906 | BY34: 269 | BZ34: 900 | CA34: 0.2988888889 | CB34: 336 | CC34: 1181 | CD34: 0.2845046571 | CE34: 308 | CF34: 1180 | CG34: 0.2610169492
A35: 25 | B35: Texoma | C35: 514 | D35: Grayson College - Texoma | E35: 52 | F35: 145 | G35: 0.3586206897 | H35: 76 | I35: 178 | J35: 0.4269662921 | K35: 80 | L35: 184 | M35: 0.4347826087 | N35: 76 | O35: 177 | P35: 0.4293785311 | Q35: 76 | R35: 191 | S35: 0.3979057592 | T35: 103 | U35: 236 | V35: 0.436440678 | W35: 99 | X35: 243 | Y35: 0.4074074074 | Z35: 107 | AA35: 264 | AB35: 0.4053030303 | AC35: 108 | AD35: 257 | AE35: 0.420233463 | AF35: 154 | AG35: 324 | AH35: 0.475308642 | AI35: 200 | AJ35: 390 | AK35: 0.5128205128 | AL35: 223 | AM35: 438 | AN35: 0.5091324201 | AO35: 129 | AP35: 284 | AQ35: 0.4542253521 | AR35: 172 | AS35: 359 | AT35: 0.4791086351 | AU35: 142 | AV35: 392 | AW35: 0.362244898 | AX35: 148 | AY35: 390 | AZ35: 0.3794871795 | BA35: 118 | BB35: 335 | BC35: 0.352238806 | BD35: 102 | BE35: 352 | BF35: 0.2897727273 | BG35: 92 | BH35: 279 | BI35: 0.3297491039 | BJ35: 104 | BK35: 296 | BL35: 0.3513513514 | BM35: 83 | BN35: 273 | BO35: 0.304029304 | BP35: 68 | BQ35: 281 | BR35: 0.2419928826 | BS35: 81 | BT35: 306 | BU35: 0.2647058824 | BV35: 97 | BW35: 333 | BX35: 0.2912912913 | BY35: 80 | BZ35: 314 | CA35: 0.2547770701 | CB35: 83 | CC35: 330 | CD35: 0.2515151515 | CE35: 68 | CF35: 253 | CG35: 0.2687747036
A36: 26 | B36: Central Texas | C36: 534 | D36: Central Texas College | E36: 44 | F36: 299 | G36: 0.1471571906 | H36: 66 | I36: 370 | J36: 0.1783783784 | K36: 70 | L36: 370 | M36: 0.1891891892 | N36: 56 | O36: 316 | P36: 0.1772151899 | Q36: 19 | R36: 223 | S36: 0.08520179372 | T36: 17 | U36: 124 | V36: 0.1370967742 | W36: 19 | X36: 136 | Y36: 0.1397058824 | Z36: 23 | AA36: 130 | AB36: 0.1769230769 | AC36: 0 | AD36: 36 | AE36: 0 | AF36: 5 | AG36: 105 | AH36: 0.04761904762 | AI36: 11 | AJ36: 88 | AK36: 0.125 | AL36: 12 | AM36: 121 | AN36: 0.09917355372 | AO36: 8 | AP36: 76 | AQ36: 0.1052631579 | AR36: 18 | AS36: 163 | AT36: 0.1104294479 | AU36: 14 | AV36: 215 | AW36: 0.06511627907 | AX36: 11 | AY36: 238 | AZ36: 0.04621848739 | BA36: 10 | BB36: 176 | BC36: 0.05681818182 | BD36: 12 | BE36: 185 | BF36: 0.06486486486 | BG36: 14 | BH36: 213 | BI36: 0.06572769953 | BJ36: 17 | BK36: 238 | BL36: 0.07142857143 | BM36: 2 | BN36: 30 | BO36: 0.06666666667 | BP36: 1 | BQ36: 42 | BR36: 0.02380952381 | BS36: 1 | BT36: 53 | BU36: 0.01886792453 | BV36: 3 | BW36: 55 | BX36: 0.05454545455 | BY36: 4 | BZ36: 36 | CA36: 0.1111111111 | CB36: 3 | CC36: 53 | CD36: 0.05660377358 | CE36: 4 | CF36: 64 | CG36: 0.0625
A37: 26 | B37: Central Texas | C37: 535 | D37: Temple College | E37: 36 | F37: 138 | G37: 0.2608695652 | H37: 41 | I37: 197 | J37: 0.2081218274 | K37: 42 | L37: 174 | M37: 0.2413793103 | N37: 30 | O37: 155 | P37: 0.1935483871 | Q37: 67 | R37: 302 | S37: 0.2218543046 | T37: 51 | U37: 345 | V37: 0.147826087 | W37: 55 | X37: 383 | Y37: 0.1436031332 | Z37: 44 | AA37: 384 | AB37: 0.1145833333 | AC37: 35 | AD37: 312 | AE37: 0.1121794872 | AF37: 32 | AG37: 346 | AH37: 0.09248554913 | AI37: 32 | AJ37: 359 | AK37: 0.08913649025 | AL37: 31 | AM37: 364 | AN37: 0.08516483516 | AO37: 111 | AP37: 435 | AQ37: 0.2551724138 | AR37: 127 | AS37: 507 | AT37: 0.2504930966 | AU37: 139 | AV37: 596 | AW37: 0.2332214765 | AX37: 106 | AY37: 523 | AZ37: 0.2026768642 | BA37: 120 | BB37: 535 | BC37: 0.2242990654 | BD37: 141 | BE37: 649 | BF37: 0.217257319 | BG37: 143 | BH37: 621 | BI37: 0.230273752 | BJ37: 97 | BK37: 506 | BL37: 0.1916996047 | BM37: 84 | BN37: 588 | BO37: 0.1428571429 | BP37: 90 | BQ37: 695 | BR37: 0.1294964029 | BS37: 89 | BT37: 687 | BU37: 0.1295487627 | BV37: 76 | BW37: 661 | BX37: 0.1149773071 | BY37: 77 | BZ37: 543 | CA37: 0.1418047882 | CB37: 82 | CC37: 722 | CD37: 0.1135734072 | CE37: 99 | CF37: 693 | CG37: 0.1428571429
A38: 27 | B38: Middle Rio | C38: 530 | D38: Southwest Texas Junior College | E38: 12 | F38: 379 | G38: 0.03166226913 | H38: 15 | I38: 482 | J38: 0.03112033195 | K38: 16 | L38: 413 | M38: 0.0387409201 | N38: 17 | O38: 368 | P38: 0.04619565217 | Q38: 15 | R38: 345 | S38: 0.04347826087 | T38: 11 | U38: 366 | V38: 0.03005464481 | W38: 11 | X38: 410 | Y38: 0.02682926829 | Z38: 13 | AA38: 486 | AB38: 0.02674897119 | AC38: 20 | AD38: 471 | AE38: 0.04246284501 | AF38: 23 | AG38: 534 | AH38: 0.04307116105 | AI38: 23 | AJ38: 546 | AK38: 0.04212454212 | AL38: 19 | AM38: 513 | AN38: 0.03703703704 | AO38: 8 | AP38: 457 | AQ38: 0.01750547046 | AR38: 18 | AS38: 564 | AT38: 0.03191489362 | AU38: 15 | AV38: 536 | AW38: 0.02798507463 | AX38: 15 | AY38: 523 | AZ38: 0.02868068834 | BA38: 11 | BB38: 463 | BC38: 0.02375809935 | BD38: 12 | BE38: 487 | BF38: 0.02464065708 | BG38: 14 | BH38: 443 | BI38: 0.0316027088 | BJ38: 10 | BK38: 438 | BL38: 0.02283105023 | BM38: 6 | BN38: 356 | BO38: 0.01685393258 | BP38: 7 | BQ38: 465 | BR38: 0.01505376344 | BS38: 12 | BT38: 462 | BU38: 0.02597402597 | BV38: 10 | BW38: 401 | BX38: 0.02493765586 | BY38: 3 | BZ38: 320 | CA38: 0.009375 | CB38: 5 | CC38: 465 | CD38: 0.01075268817 | CE38: 1 | CF38: 451 | CG38: 0.0022172949
A39: 28 | B39: Gulf Coast | C39: 515 | D39: Houston-Galveston Area Council | E39: 6165 | F39: 11859 | G39: 0.5198583354 | H39: 6552 | I39: 12449 | J39: 0.5263073339 | K39: 6629 | L39: 12359 | M39: 0.5363702565 | N39: 5674 | O39: 10734 | P39: 0.528600708 | Q39: 4283 | R39: 8528 | S39: 0.502227955 | T39: 4356 | U39: 8438 | V39: 0.5162360749 | W39: 5232 | X39: 9804 | Y39: 0.5336597307 | Z39: 5144 | AA39: 9967 | AB39: 0.5161031404 | AC39: 4232 | AD39: 9109 | AE39: 0.464595455 | AF39: 4840 | AG39: 9836 | AH39: 0.4920699471 | AI39: 5360 | AJ39: 10682 | AK39: 0.5017786931 | AL39: 4909 | AM39: 9833 | AN39: 0.4992372623 | AO39: 4663 | AP39: 9993 | AQ39: 0.4666266386 | AR39: 5102 | AS39: 10913 | AT39: 0.4675158068 | AU39: 4618 | AV39: 10200 | AW39: 0.452745098 | AX39: 4013 | AY39: 9300 | AZ39: 0.4315053763 | BA39: 3272 | BB39: 7737 | BC39: 0.422902934 | BD39: 3921 | BE39: 8822 | BF39: 0.4444570392 | BG39: 4182 | BH39: 9638 | BI39: 0.4339074497 | BJ39: 4296 | BK39: 10019 | BL39: 0.4287853079 | BM39: 3433 | BN39: 8172 | BO39: 0.4200930005 | BP39: 3912 | BQ39: 9168 | BR39: 0.4267015707 | BS39: 3971 | BT39: 9276 | BU39: 0.428094006 | BV39: 3839 | BW39: 9330 | BX39: 0.4114683816 | BY39: 2838 | BZ39: 7282 | CA39: 0.3897280967 | CB39: 3755 | CC39: 9332 | CD39: 0.4023789113 | CE39: 3576 | CF39: 9179 | CG39: 0.3895849221
B40: Orphan Grantees | E40: 435 | F40: 1478 | G40: =E40/F40 -> 0.2943166441 | H40: 612 | I40: 2156 | J40: =H40/I40 -> 0.2838589981 | K40: 505 | L40: 1685 | M40: =K40/L40 -> 0.2997032641 | N40: 391 | O40: 1384 | P40: =N40/O40 -> 0.2825144509 | S40: NA | V40: NA | Y40: NA | AB40: NA | AE40: NA | AH40: NA | AK40: NA | AN40: NA | AQ40: NA | AT40: NA | AW40: NA | AZ40: NA | BC40: NA | BF40: NA | BI40: NA | BL40: NA | BO40: NA | BR40: NA | BU40: NA | BX40: NA | CA40: NA | CD40: NA | CG40: NA
B41: Statewide | D41: Statewide | E41: 14739 | F41: 33908 | G41: =E41/F41 -> 0.4346761826 | H41: 18430 | I41: 41794 | J41: =H41/I41 -> 0.4409723884 | K41: 18667 | L41: 40289 | M41: =K41/L41 -> 0.4633274591 | N41: 15855 | O41: 35097 | P41: =N41/O41 -> 0.4517480127 | Q41: 11748 | R41: 28169 | S41: =Q41/R41 -> 0.4170542085 | T41: 15964 | U41: 37281 | V41: =T41/U41 -> 0.4282073979 | W41: 17632 | X41: 41448 | Y41: =W41/X41 -> 0.4254005018 | Z41: 16010 | AA41: 39150 | AB41: =Z41/AA41 -> 0.4089399745 | AC41: 13032 | AD41: 33672 | AE41: =AC41/AD41 -> 0.3870277976 | AF41: 18504 | AG41: 44526 | AH41: =AF41/AG41 -> 0.4155774154 | AI41: 19951 | AJ41: 47820 | AK41: =AI41/AJ41 -> 0.4172103722 | AL41: 17355 | AM41: 42225 | AN41: =AL41/AM41 -> 0.4110124334 | AO41: 13802 | AP41: 34546 | AQ41: =AO41/AP41 -> 0.3995252707 | AR41: 19836 | AS41: 45696 | AT41: =AR41/AS41 -> 0.4340861345 | AU41: 19508 | AV41: 46189 | AW41: =AU41/AV41 -> 0.4223516422 | AX41: 17436 | AY41: 42974 | AZ41: =AX41/AY41 -> 0.4057336994 | BA41: 12725 | BB41: 33765 | BC41: =BA41/BB41 -> 0.3768695395 | BD41: 17900 | BE41: 43924 | BF41: =BD41/BE41 -> 0.4075220836 | BG41: 17630 | BH41: 44038 | BI41: =BG41/BH41 -> 0.4003360734 | BJ41: 17159 | BK41: 43384 | BL41: =BJ41/BK41 -> 0.3955144754 | BM41: 12703 | BN41: 32918 | BO41: =BM41/BN41 -> 0.3858982927 | BP41: 17176 | BQ41: 42500 | BR41: =BP41/BQ41 -> 0.4041411765 | BS41: 17319 | BT41: 42284 | BU41: =BS41/BT41 -> 0.4095875508 | BV41: 16903 | BW41: 42075 | BX41: =BV41/BW41 -> 0.401734997 | BY41: 12177 | BZ41: 33983 | CA41: =BY41/BZ41 -> 0.3583262219 | CB41: 15868 | CC41: 43947 | CD41: =CB41/CC41 -> 0.3610712904 | CE41: 14470 | CF41: 41753 | CG41: =CE41/CF41 -> 0.3465619237
A42: Funds include: 1,3,5,8,17,18,19,20,21,23,24,26,27,28,29,30,31,33,34,35,36,37,40,43,44,45,46,47,48,49,50,52,53,54,55,56 Total: Total participants for quarterly period described Missing SSN: Number of participants having an invalid/missing SSN as described by the Social Security Administration. Rate: Rate of Invalid participants to Total Participants.
A43: Performance results for this measure may have been impacted by efforts to reduce the impact of Covid19 which may have slowed enrollments, reduced demand for services among existing Participants, or delayed data entry for the March 2020 period.

Sheet Participants - PY
E1: PY13 (Jul13 - Jun14) | H1: PY14 (Jul14 - Jun15) | K1: PY15 (Jul15 - Jun16) | N1: PY16 (Jul16 - Jun17) | Q1: PY17 (Jul17 - Jun18) | T1: PY18 (Jul18 - Jun19) | W1: PY19 (Jul19 - Mar20)
A2: WDA # | B2: WDA Name | C2: Grantee # | D2: Grantee Name | E2: Missing SSN | F2: Total Participants | G2: Rate | H2: Missing SSN | I2: Total Participants | J2: Rate | K2: Missing SSN | L2: Total Participants | M2: Rate | N2: Missing SSN | O2: Total Participants | P2: Rate | Q2: Missing SSN | R2: Total Participants | S2: Rate | T2: Missing SSN | U2: Total Participants | V2: Rate | W2: Missing SSN | X2: Total Participants | Y2: Rate
A3: 1 | B3: Panhandle | C3: 502 | D3: Amarillo College | E3: 68 | F3: 475 | G3: =E3/F3 -> 0.1431578947 | H3: 214 | I3: 957 | J3: =H3/I3 -> 0.223615465 | K3: 503 | L3: 1603 | M3: =K3/L3 -> 0.31378665 | N3: 462 | O3: 1351 | P3: =N3/O3 -> 0.3419689119 | Q3: 353 | R3: 1497 | S3: =Q3/R3 -> 0.2358049432 | T3: 313 | U3: 1348 | V3: =T3/U3 -> 0.2321958457 | W3: 157 | X3: 1128 | Y3: =W3/X3 -> 0.1391843972
A4: 2 | B4: South Plains | C4: 526 | D4: Region 17 ESC, South Plains | E4: 71 | F4: 281 | G4: =E4/F4 -> 0.2526690391 | H4: 241 | I4: 867 | J4: =H4/I4 -> 0.2779700115 | K4: 206 | L4: 886 | M4: =K4/L4 -> 0.2325056433 | N4: 203 | O4: 1000 | P4: =N4/O4 -> 0.203 | Q4: 177 | R4: 844 | S4: =Q4/R4 -> 0.2097156398 | T4: 200 | U4: 894 | V4: =T4/U4 -> 0.2237136465 | W4: 130 | X4: 688 | Y4: =W4/X4 -> 0.1889534884
A5: 3 | B5: North Texas | C5: 528 | D5: Region 9 ESC | E5: 146 | F5: 480 | G5: 0.3041666667 | H5: 192 | I5: 580 | J5: 0.3310344828 | K5: 189 | L5: 547 | M5: 0.3455210238 | N5: 161 | O5: 582 | P5: 0.2766323024 | Q5: 133 | R5: 580 | S5: 0.2293103448 | T5: 133 | U5: 529 | V5: 0.2514177694 | W5: 100 | X5: 452 | Y5: 0.2212389381
A6: 4 | B6: North Central | C6: 533 | D6: Weatherford ISD | E6: 93 | F6: 228 | G6: 0.4078947368 | H6: 143 | I6: 327 | J6: 0.4373088685 | K6: 156 | L6: 366 | M6: 0.4262295082 | N6: 118 | O6: 294 | P6: 0.4013605442 | Q6: 133 | R6: 315 | S6: 0.4222222222 | T6: 162 | U6: 414 | V6: 0.3913043478 | W6: 109 | X6: 316 | Y6: 0.3449367089
A7: 4 | B7: North Central | C7: 540 | D7: Navarro College | E7: 152 | F7: 471 | G7: 0.3227176221 | H7: 180 | I7: 578 | J7: 0.3114186851 | K7: 225 | L7: 625 | M7: 0.36 | N7: 218 | O7: 712 | P7: 0.3061797753 | Q7: 165 | R7: 758 | S7: 0.2176781003 | T7: 166 | U7: 729 | V7: 0.2277091907 | W7: 124 | X7: 622 | Y7: 0.1993569132
A8: 4 | B8: North Central | C8: 541 | D8: Paris Jr College - North Central | G8: NA | H8: 43 | I8: 79 | J8: 0.5443037975 | K8: 60 | L8: 145 | M8: 0.4137931034 | N8: 48 | O8: 167 | P8: 0.2874251497 | Q8: 57 | R8: 186 | S8: 0.3064516129 | T8: 24 | U8: 118 | V8: 0.2033898305 | W8: 20 | X8: 127 | Y8: 0.157480315
A9: 4 | B9: North Central | C9: 546 | D9: New Denton ISD | E9: 598 | F9: 1053 | G9: 0.5679012346 | H9: 873 | I9: 1471 | J9: 0.5934738273 | K9: 1145 | L9: 1922 | M9: 0.5957336108 | N9: 985 | O9: 1676 | P9: 0.5877088305 | Q9: 1381 | R9: 2140 | S9: 0.6453271028 | T9: 1614 | U9: 2485 | V9: 0.6494969819 | W9: 821 | X9: 1837 | Y9: 0.4469243332
A10: 4 | B10: North Central | C10: 547 | D10: Grayson College - North Central | E10: 264 | F10: 339 | G10: 0.7787610619 | H10: 345 | I10: 463 | J10: 0.7451403888 | K10: 591 | L10: 798 | M10: 0.7406015038 | N10: 542 | O10: 773 | P10: 0.701164295 | Q10: 615 | R10: 787 | S10: 0.7814485388 | T10: 821 | U10: 999 | V10: 0.8218218218 | W10: 468 | X10: 859 | Y10: 0.5448195576
A11: 5 | B11: Tarrant County | C11: 538 | D11: Tarrant County WDB | E11: 1582 | F11: 3151 | G11: 0.5020628372 | H11: 2466 | I11: 4410 | J11: 0.5591836735 | K11: 2706 | L11: 4694 | M11: 0.5764806135 | N11: 2931 | O11: 4740 | P11: 0.6183544304 | Q11: 2609 | R11: 4893 | S11: 0.5332107092 | T11: 2594 | U11: 5027 | V11: 0.516013527 | W11: 1666 | X11: 4563 | Y11: 0.3651106728
A12: 6 | B12: Dallas County | C12: 509 | D12: Dallas County LDB | E12: 3393 | F12: 5181 | G12: 0.6548928778 | H12: 2141 | I12: 4200 | J12: 0.5097619048 | K12: 3221 | L12: 7350 | M12: 0.4382312925 | N12: 4987 | O12: 8687 | P12: 0.5740762058 | Q12: 5346 | R12: 9186 | S12: 0.5819725669 | T12: 5281 | U12: 8496 | V12: 0.621586629 | W12: 3631 | X12: 6694 | Y12: 0.5424260532
A13: 7 | B13: North East Texas | C13: 523 | D13: Paris Junior College, Northeast Texas | E13: 185 | F13: 544 | G13: 0.3400735294 | H13: 122 | I13: 435 | J13: 0.2804597701 | K13: 153 | L13: 467 | M13: 0.3276231263 | N13: 154 | O13: 439 | P13: 0.3507972665 | Q13: 164 | R13: 515 | S13: 0.3184466019 | T13: 170 | U13: 489 | V13: 0.3476482618 | W13: 112 | X13: 387 | Y13: 0.2894056848
A14: 7 | B14: North East Texas | C14: 543 | D14: Texarkana College | E14: 295 | F14: 729 | G14: 0.4046639232 | H14: 27 | I14: 391 | J14: 0.06905370844 | K14: 38 | L14: 390 | M14: 0.09743589744 | N14: 27 | O14: 405 | P14: 0.06666666667 | Q14: 27 | R14: 332 | S14: 0.0813253012 | T14: 51 | U14: 310 | V14: 0.164516129 | W14: 31 | X14: 334 | Y14: 0.09281437126
A15: 8 | B15: East Texas | C15: 519 | D15: Literacy Council of Tyler | E15: 952 | F15: 2667 | G15: 0.3569553806 | H15: 1095 | I15: 2816 | J15: 0.3888494318 | K15: 1061 | L15: 2956 | M15: 0.3589309878 | N15: 982 | O15: 2777 | P15: 0.3536190133 | Q15: 977 | R15: 2636 | S15: 0.3706373293 | T15: 958 | U15: 2498 | V15: 0.3835068054 | W15: 629 | X15: 2031 | Y15: 0.3096996553
A16: 9 | B16: West Central | C16: 501 | D16: Abilene ISD | E16: 30 | F16: 465 | G16: 0.06451612903 | H16: 71 | I16: 773 | J16: 0.09184993532 | K16: 41 | L16: 655 | M16: 0.06259541985 | N16: 97 | O16: 913 | P16: 0.1062431544 | Q16: 103 | R16: 900 | S16: 0.1144444444 | T16: 110 | U16: 853 | V16: 0.1289566237 | W16: 69 | X16: 601 | Y16: 0.1148086522
A17: 10 | B17: Borderplex | C17: 544 | D17: Ysleta ISD | E17: 747 | F17: 3542 | G17: 0.2108977979 | H17: 592 | I17: 3280 | J17: 0.1804878049 | K17: 494 | L17: 3093 | M17: 0.1597154866 | N17: 433 | O17: 3153 | P17: 0.1373295274 | Q17: 312 | R17: 3144 | S17: 0.09923664122 | T17: 300 | U17: 3057 | V17: 0.09813542689 | W17: 345 | X17: 3007 | Y17: 0.1147322913
A18: 11 | B18: Permian Basin | C18: 517 | D18: Howard College, Permian Basin | E18: 134 | F18: 247 | G18: 0.5425101215 | H18: 127 | I18: 223 | J18: 0.5695067265 | K18: 102 | L18: 239 | M18: 0.4267782427 | N18: 96 | O18: 213 | P18: 0.4507042254 | Q18: 145 | R18: 253 | S18: 0.5731225296 | T18: 240 | U18: 332 | V18: 0.7228915663 | W18: 136 | X18: 225 | Y18: 0.6044444444
A19: 11 | B19: Permian Basin | C19: 525 | D19: Region 17 ESC, Permian Basin | E19: 20 | F19: 61 | G19: 0.3278688525 | H19: 67 | I19: 162 | J19: 0.4135802469 | K19: 57 | L19: 144 | M19: 0.3958333333 | N19: 55 | O19: 133 | P19: 0.4135338346 | Q19: 59 | R19: 139 | S19: 0.4244604317 | T19: 71 | U19: 138 | V19: 0.5144927536 | W19: 51 | X19: 116 | Y19: 0.4396551724
A20: 11 | B20: Permian Basin | C20: 539 | D20: Midland College | E20: 119 | F20: 563 | G20: 0.2113676732 | H20: 201 | I20: 869 | J20: 0.2313003452 | K20: 283 | L20: 985 | M20: 0.2873096447 | N20: 261 | O20: 1080 | P20: 0.2416666667 | Q20: 222 | R20: 910 | S20: 0.243956044 | T20: 173 | U20: 881 | V20: 0.1963677639 | W20: 227 | X20: 982 | Y20: 0.2311608961
A21: 11 | B21: Permian Basin | C21: 545 | D21: Odessa College | E21: 205 | F21: 788 | G21: 0.2601522843 | H21: 214 | I21: 928 | J21: 0.2306034483 | K21: 203 | L21: 1058 | M21: 0.1918714556 | N21: 218 | O21: 1099 | P21: 0.1983621474 | Q21: 210 | R21: 1016 | S21: 0.2066929134 | T21: 203 | U21: 977 | V21: 0.207778915 | W21: 153 | X21: 735 | Y21: 0.2081632653
A22: 12 | B22: Concho Valley | C22: 516 | D22: Howard College, Concho Valley | E22: 230 | F22: 670 | G22: 0.3432835821 | H22: 209 | I22: 507 | J22: 0.4122287968 | K22: 276 | L22: 711 | M22: 0.388185654 | N22: 147 | O22: 587 | P22: 0.2504258944 | Q22: 20 | R22: 571 | S22: 0.0350262697 | T22: 27 | U22: 555 | V22: 0.04864864865 | W22: 30 | X22: 427 | Y22: 0.07025761124
A23: 13 | B23: Heart of Texas | C23: 520 | D23: McLennan Community College | E23: 491 | F23: 1615 | G23: 0.3040247678 | H23: 428 | I23: 1236 | J23: 0.3462783172 | K23: 405 | L23: 1145 | M23: 0.3537117904 | N23: 357 | O23: 1078 | P23: 0.3311688312 | Q23: 352 | R23: 1098 | S23: 0.320582878 | T23: 238 | U23: 941 | V23: 0.252922423 | W23: 213 | X23: 833 | Y23: 0.2557022809
A24: 14 | B24: Capital Area | C24: 504 | D24: Austin Community College | E24: 1385 | F24: 2946 | G24: 0.4701289885 | H24: 1496 | I24: 3085 | J24: 0.4849270665 | K24: 1701 | L24: 3857 | M24: 0.4410163339 | N24: 1890 | O24: 4168 | P24: 0.4534548944 | Q24: 1727 | R24: 4218 | S24: 0.4094357515 | T24: 1642 | U24: 4440 | V24: 0.3698198198 | W24: 1386 | X24: 4119 | Y24: 0.3364894392
A25: 15 | B25: Rural Capital | C25: 508 | D25: Community Action Inc. | E25: 284 | F25: 859 | G25: 0.3306169965 | H25: 319 | I25: 940 | J25: 0.3393617021 | K25: 417 | L25: 1163 | M25: 0.35855546 | N25: 762 | O25: 1623 | P25: 0.4695009242 | Q25: 843 | R25: 2122 | S25: 0.3972667295 | T25: 855 | U25: 2417 | V25: 0.3537443111 | W25: 762 | X25: 2195 | Y25: 0.3471526196
A26: 16 | B26: Brazos Valley | C26: 505 | D26: Brazos Valley COG | E26: 1164 | F26: 2319 | G26: 0.5019404916 | H26: 628 | I26: 1313 | J26: 0.4782939832 | K26: 478 | L26: 1154 | M26: 0.4142114385 | N26: 452 | O26: 1020 | P26: 0.4431372549 | Q26: 537 | R26: 1223 | S26: 0.4390842191 | T26: 137 | U26: 402 | V26: 0.3407960199 | W26: 218 | X26: 506 | Y26: 0.4308300395
A27: 17 | B27: Deep East Texas | C27: 503 | D27: Angelina College | E27: 187 | F27: 554 | G27: 0.3375451264 | H27: 301 | I27: 971 | J27: 0.3099897013 | K27: 322 | L27: 1160 | M27: 0.2775862069 | N27: 294 | O27: 997 | P27: 0.294884654 | Q27: 326 | R27: 1141 | S27: 0.2857142857 | T27: 292 | U27: 816 | V27: 0.3578431373 | W27: 160 | X27: 700 | Y27: 0.2285714286
A28: 18 | B28: Southeast Texas | C28: 527 | D28: Region 5 ESC | E28: 28 | F28: 259 | G28: 0.1081081081 | H28: 224 | I28: 744 | J28: 0.3010752688 | K28: 356 | L28: 1057 | M28: 0.3368022706 | N28: 508 | O28: 1267 | P28: 0.4009471192 | Q28: 410 | R28: 1013 | S28: 0.4047384008 | T28: 587 | U28: 1215 | V28: 0.483127572 | W28: 330 | X28: 1078 | Y28: 0.306122449
A29: 19 | B29: Golden Crescent | C29: 532 | D29: Victoria College | E29: 152 | F29: 580 | G29: 0.2620689655 | H29: 180 | I29: 727 | J29: 0.2475928473 | K29: 205 | L29: 985 | M29: 0.2081218274 | N29: 175 | O29: 956 | P29: 0.1830543933 | Q29: 87 | R29: 712 | S29: 0.1221910112 | T29: 148 | U29: 889 | V29: 0.1664791901 | W29: 111 | X29: 644 | Y29: 0.1723602484
A30: 20 | B30: Alamo | C30: 512 | D30: Region 20 ESC | E30: 2252 | F30: 5785 | G30: 0.3892826275 | H30: 2553 | I30: 6974 | J30: 0.3660739891 | K30: 2769 | L30: 7447 | M30: 0.3718275816 | N30: 2960 | O30: 7011 | P30: 0.4221936956 | Q30: 2728 | R30: 6374 | S30: 0.4279887041 | T30: 2876 | U30: 6549 | V30: 0.4391510154 | W30: 2137 | X30: 5802 | Y30: 0.3683212685
A31: 21 | B31: South Texas | C31: 518 | D31: Laredo College | E31: 287 | F31: 1142 | G31: 0.2513134851 | H31: 402 | I31: 1436 | J31: 0.2799442897 | K31: 621 | L31: 1917 | M31: 0.323943662 | N31: 483 | O31: 1528 | P31: 0.3160994764 | Q31: 436 | R31: 1605 | S31: 0.2716510903 | T31: 476 | U31: 1523 | V31: 0.3125410374 | W31: 365 | X31: 1371 | Y31: 0.2662290299
A32: 22 | B32: Coastal Bend | C32: 542 | D32: Region 2 ESC | E32: 2 | F32: 313 | G32: 0.006389776358 | H32: 196 | I32: 1822 | J32: 0.1075740944 | K32: 310 | L32: 2438 | M32: 0.1271534044 | N32: 278 | O32: 2035 | P32: 0.1366093366 | Q32: 180 | R32: 1827 | S32: 0.09852216749 | T32: 273 | U32: 1172 | V32: 0.2329351536 | W32: 221 | X32: 1453 | Y32: 0.1520991053
A33: 23 | B33: Lower Rio | C33: 524 | D33: Region 1 ESC | E33: 608 | F33: 1811 | G33: 0.3357261182 | H33: 1537 | I33: 3542 | J33: 0.4339356296 | K33: 1867 | L33: 4380 | M33: 0.4262557078 | N33: 1736 | O33: 4310 | P33: 0.4027842227 | Q33: 1517 | R33: 4033 | S33: 0.376146789 | T33: 1288 | U33: 3447 | V33: 0.3736582536 | W33: 1084 | X33: 3174 | Y33: 0.3415248897
A34: 24 | B34: Cameron County | C34: 506 | D34: Brownsville ISD | E34: 379 | F34: 1246 | G34: 0.3041733547 | H34: 639 | I34: 1752 | J34: 0.3647260274 | K34: 915 | L34: 2360 | M34: 0.3877118644 | N34: 807 | O34: 2106 | P34: 0.3831908832 | Q34: 631 | R34: 1959 | S34: 0.3221031138 | T34: 489 | U34: 1781 | V34: 0.2745648512 | W34: 404 | X34: 1563 | Y34: 0.2584772873
A35: 25 | B35: Texoma | C35: 514 | D35: Grayson College - Texoma | E35: 121 | F35: 319 | G35: 0.3793103448 | H35: 183 | I35: 481 | J35: 0.3804573805 | K35: 346 | L35: 729 | M35: 0.4746227709 | N35: 267 | O35: 689 | P35: 0.3875181422 | Q35: 203 | R35: 669 | S35: 0.3034379671 | T35: 178 | U35: 643 | V35: 0.2768273717 | W35: 126 | X35: 509 | Y35: 0.2475442043
A36: 26 | B36: Central Texas | C36: 534 | D36: Central Texas College | E36: 97 | F36: 693 | G36: 0.13997114 | H36: 46 | I36: 374 | J36: 0.1229946524 | K36: 19 | L36: 218 | M36: 0.0871559633 | N36: 24 | O36: 375 | P36: 0.064 | Q36: 26 | R36: 398 | S36: 0.06532663317 | T36: 4 | U36: 83 | V36: 0.04819277108 | W36: 6 | X36: 90 | Y36: 0.06666666667
A37: 26 | B37: Central Texas | C37: 535 | D37: Temple College | E37: 76 | F37: 341 | G37: 0.2228739003 | H37: 107 | I37: 754 | J37: 0.1419098143 | K37: 68 | L37: 763 | M37: 0.08912188729 | N37: 198 | O37: 964 | P37: 0.2053941909 | Q37: 231 | R37: 1117 | S37: 0.2068039391 | T37: 159 | U37: 1234 | V37: 0.1288492707 | W37: 137 | X37: 1102 | Y37: 0.1243194192
A38: 27 | B38: Middle Rio | C38: 530 | D38: Southwest Texas Junior College | E38: 29 | F38: 836 | G38: 0.03468899522 | H38: 24 | I38: 821 | J38: 0.02923264312 | K38: 42 | L38: 1122 | M38: 0.03743315508 | N38: 28 | O38: 1067 | P38: 0.02624179944 | Q38: 22 | R38: 942 | S38: 0.02335456476 | T38: 14 | U38: 865 | V38: 0.0161849711 | W38: 5 | X38: 715 | Y38: 0.006993006993
A39: 28 | B39: Gulf Coast | C39: 515 | D39: Houston-Galveston Area Council | E39: 11008 | F39: 21896 | G39: =E39/F39 -> 0.5027402265 | H39: 9855 | I39: 19576 | J39: =H39/I39 -> 0.5034225582 | K39: 10153 | L39: 21403 | M39: =K39/L39 -> 0.4743727515 | N39: 9446 | O39: 21837 | P39: =N39/O39 -> 0.4325685763 | Q39: 8407 | R39: 19953 | S39: =Q39/R39 -> 0.4213401494 | T39: 7730 | U39: 19105 | V39: =T39/U39 -> 0.4046061241 | W39: 6093 | X39: 16352 | Y39: =W39/X39 -> 0.3726149706
B40: Orphan Grantees | E40: 819 | F40: 3229 | G40: =E40/F40 -> 0.2536388975 | J40: NA | M40: NA | P40: NA | S40: NA | V40: NA | Y40: NA
B41: Statewide | D41: Statewide | E41: 28638 | F41: 68616 | G41: =E41/F41 -> 0.417366212 | H41: 28633 | I41: 70646 | J41: =H41/I41 -> 0.4053024941 | K41: 32677 | L41: 82740 | M41: =K41/L41 -> 0.3949359439 | N41: 33750 | O41: 83625 | P41: =N41/O41 -> 0.4035874439 | Q41: 31538 | R41: 81407 | S41: =Q41/R41 -> 0.387411402 | T41: 30645 | U41: 78047 | V41: =T41/U41 -> 0.3926480198 | W41: 22652 | X41: 67877 | Y41: =W41/X41 -> 0.33372129
A42: Funds include: 1,3,5,8,17,18,19,20,21,23,24,26,27,28,29,30,31,33,34,35,36,37,40,43,44,45,46,47,48,49,50,52,53,54,55,56 Total: Total participants for quarterly period described Missing SSN: Number of participants having an invalid/missing SSN as described by the Social Security Administration. Rate: Rate of Invalid participants to Total Participants.

Sheet Exiters - QTR
E1: Jul13 - Sep13 | H1: Oct13 - Dec13 | K1: Jan14 - Mar14 | N1: Apr14 - Jun14 | Q1: Jul14 - Sep14 | T1: Oct14 - Dec14 | W1: Jan15 - Mar15 | Z1: Apr15 - Jun15 | AC1: Jul15 - Sep15 | AF1: Oct15 - Dec15 | AI1: Jan16 - Mar16 | AL1: Apr16 - Jun16 | AO1: Jul16 - Sep16 | AR1: Oct16 - Dec16 | AU1: Jan17 - Mar17 | AX1: Apr17 - Jun17 | BA1: Jul17 - Sep17 | BD1: Oct17 - Dec17 | BG1: Jan18 - Mar18 | BJ1: Apr18 - Jun18 | BM1: Jul18 - Sep18 | BP1: Oct18 - Dec18 | BS1: Jan19 - Mar19 | BV1: Apr19 - Jun19 | BY1: Jul19 - Sep19 | CB1: Oct19 - Dec19
A2: WDA # | B2: WDA Name | C2: Grantee # | D2: Grantee Name | E2: Missing SSN | F2: Total Exiters | G2: Rate | H2: Missing SSN | I2: Total Exiters | J2: Rate | K2: Missing SSN | L2: Total Exiters | M2: Rate | N2: Missing SSN | O2: Total Exiters | P2: Rate | Q2: Missing SSN | R2: Total Exiters | S2: Rate | T2: Missing SSN | U2: Total Exiters | V2: Rate | W2: Missing SSN | X2: Total Exiters | Y2: Rate | Z2: Missing SSN | AA2: Total Exiters | AB2: Rate | AC2: Missing SSN | AD2: Total Exiters | AE2: Rate | AF2: Missing SSN | AG2: Total Exiters | AH2: Rate | AI2: Missing SSN | AJ2: Total Exiters | AK2: Rate | AL2: Missing SSN | AM2: Total Exiters | AN2: Rate | AO2: Missing SSN | AP2: Total Exiters | AQ2: Rate | AR2: Missing SSN | AS2: Total Exiters | AT2: Rate | AU2: Missing SSN | AV2: Total Exiters | AW2: Rate | AX2: Missing SSN | AY2: Total Exiters | AZ2: Rate | BA2: Missing SSN | BB2: Total Exiters | BC2: Rate | BD2: Missing SSN | BE2: Total Exiters | BF2: Rate | BG2: Missing SSN | BH2: Total Exiters | BI2: Rate | BJ2: Missing SSN | BK2: Total Exiters | BL2: Rate | BM2: Missing SSN | BN2: Total Exiters | BO2: Rate | BP2: Missing SSN | BQ2: Total Exiters | BR2: Rate | BS2: Missing SSN | BT2: Total Exiters | BU2: Rate | BV2: Missing SSN | BW2: Total Exiters | BX2: Rate | BY2: Missing SSN | BZ2: Total Exiters | CA2: Rate | CB2: Missing SSN | CC2: Total Exiters | CD2: Rate
A3: 1 | B3: Panhandle | C3: 502 | D3: Amarillo College | E3: 0 | F3: 14 | G3: =E3/F3 -> 0 | H3: 14 | I3: 123 | J3: =H3/I3 -> 0.1138211382 | K3: 13 | L3: 92 | M3: =K3/L3 -> 0.1413043478 | N3: 41 | O3: 239 | P3: =N3/O3 -> 0.1715481172 | S3: NA | T3: 13 | U3: 102 | V3: =T3/U3 -> 0.1274509804 | W3: 37 | X3: 182 | Y3: =W3/X3 -> 0.2032967033 | Z3: 142 | AA3: 550 | AB3: =Z3/AA3 -> 0.2581818182 | AC3: 36 | AD3: 117 | AE3: =AC3/AD3 -> 0.3076923077 | AF3: 35 | AG3: 233 | AH3: =AF3/AG3 -> 0.1502145923 | AI3: 114 | AJ3: 344 | AK3: =AI3/AJ3 -> 0.3313953488 | AL3: 263 | AM3: 723 | AN3: =AL3/AM3 -> 0.3637621024 | AO3: 33 | AP3: 97 | AQ3: =AO3/AP3 -> 0.3402061856 | AR3: 134 | AS3: 386 | AT3: =AR3/AS3 -> 0.3471502591 | AU3: 96 | AV3: 308 | AW3: =AU3/AV3 -> 0.3116883117 | AX3: 201 | AY3: 563 | AZ3: =AX3/AY3 -> 0.3570159858 | BA3: 19 | BB3: 108 | BC3: =BA3/BB3 -> 0.1759259259 | BD3: 73 | BE3: 491 | BF3: =BD3/BE3 -> 0.1486761711 | BG3: 69 | BH3: 306 | BI3: =BG3/BH3 -> 0.2254901961 | BJ3: 191 | BK3: 572 | BL3: =BJ3/BK3 -> 0.3339160839 | BM3: 17 | BN3: 84 | BO3: =BM3/BN3 -> 0.2023809524 | BP3: 66 | BQ3: 330 | BR3: =BP3/BQ3 -> 0.2 | BS3: 53 | BT3: 293 | BU3: =BS3/BT3 -> 0.180887372 | BV3: 169 | BW3: 566 | BX3: =BV3/BW3 -> 0.2985865724 | BY3: 13 | BZ3: 127 | CA3: =BY3/BZ3 -> 0.1023622047 | CB3: 47 | CC3: 449 | CD3: =CB3/CC3 -> 0.1046770601
A4: 2 | B4: South Plains | C4: 526 | D4: Region 17 ESC, South Plains | E4: 1 | F4: 10 | G4: =E4/F4 -> 0.1 | H4: 12 | I4: 45 | J4: =H4/I4 -> 0.2666666667 | K4: 6 | L4: 34 | M4: =K4/L4 -> 0.1764705882 | N4: 40 | O4: 136 | P4: =N4/O4 -> 0.2941176471 | Q4: 20 | R4: 93 | S4: =Q4/R4 -> 0.2150537634 | T4: 68 | U4: 192 | V4: =T4/U4 -> 0.3541666667 | W4: 56 | X4: 187 | Y4: =W4/X4 -> 0.2994652406 | Z4: 84 | AA4: 297 | AB4: =Z4/AA4 -> 0.2828282828 | AC4: 11 | AD4: 71 | AE4: =AC4/AD4 -> 0.1549295775 | AF4: 49 | AG4: 175 | AH4: =AF4/AG4 -> 0.28 | AI4: 52 | AJ4: 190 | AK4: =AI4/AJ4 -> 0.2736842105 | AL4: 72 | AM4: 339 | AN4: =AL4/AM4 -> 0.2123893805 | AO4: 14 | AP4: 130 | AQ4: =AO4/AP4 -> 0.1076923077 | AR4: 49 | AS4: 212 | AT4: =AR4/AS4 -> 0.2311320755 | AU4: 46 | AV4: 211 | AW4: =AU4/AV4 -> 0.2180094787 | AX4: 70 | AY4: 339 | AZ4: =AX4/AY4 -> 0.2064896755 | BA4: 17 | BB4: 89 | BC4: =BA4/BB4 -> 0.191011236 | BD4: 38 | BE4: 187 | BF4: =BD4/BE4 -> 0.2032085561 | BG4: 34 | BH4: 158 | BI4: =BG4/BH4 -> 0.2151898734 | BJ4: 66 | BK4: 286 | BL4: =BJ4/BK4 -> 0.2307692308 | BM4: 13 | BN4: 113 | BO4: =BM4/BN4 -> 0.1150442478 | BP4: 35 | BQ4: 194 | BR4: =BP4/BQ4 -> 0.1804123711 | BS4: 68 | BT4: 223 | BU4: =BS4/BT4 -> 0.3049327354 | BV4: 59 | BW4: 235 | BX4: =BV4/BW4 -> 0.2510638298 | BY4: 17 | BZ4: 110 | CA4: =BY4/BZ4 -> 0.1545454545 | CB4: 34 | CC4: 175 | CD4: =CB4/CC4 -> 0.1942857143
A5: 3 | B5: North Texas | C5: 528 | D5: Region 9 ESC | E5: 12 | F5: 45 | G5: 0.2666666667 | H5: 36 | I5: 159 | J5: 0.2264150943 | K5: 22 | L5: 54 | M5: 0.4074074074 | N5: 65 | O5: 184 | P5: 0.3532608696 | Q5: 15 | R5: 62 | S5: 0.2419354839 | T5: 45 | U5: 114 | V5: 0.3947368421 | W5: 38 | X5: 103 | Y5: 0.3689320388 | Z5: 76 | AA5: 224 | AB5: 0.3392857143 | AC5: 12 | AD5: 59 | AE5: 0.2033898305 | AF5: 47 | AG5: 116 | AH5: 0.4051724138 | AI5: 27 | AJ5: 101 | AK5: 0.2673267327 | AL5: 90 | AM5: 209 | AN5: 0.4306220096 | AO5: 4 | AP5: 44 | AQ5: 0.09090909091 | AR5: 43 | AS5: 135 | AT5: 0.3185185185 | AU5: 35 | AV5: 116 | AW5: 0.3017241379 | AX5: 52 | AY5: 173 | AZ5: 0.3005780347 | BA5: 9 | BB5: 73 | BC5: 0.1232876712 | BD5: 38 | BE5: 147 | BF5: 0.2585034014 | BG5: 28 | BH5: 104 | BI5: 0.2692307692 | BJ5: 45 | BK5: 199 | BL5: 0.2261306533 | BM5: 5 | BN5: 48 | BO5: 0.1041666667 | BP5: 47 | BQ5: 133 | BR5: 0.3533834586 | BS5: 26 | BT5: 95 | BU5: 0.2736842105 | BV5: 59 | BW5: 221 | BX5: 0.2669683258 | BY5: 3 | BZ5: 48 | CA5: 0.0625 | CB5: 24 | CC5: 117 | CD5: 0.2051282051
A6: 4 | B6: North Central | C6: 533 | D6: Weatherford ISD | E6: 0 | F6: 13 | G6: 0 | H6: 12 | I6: 49 | J6: 0.2448979592 | K6: 11 | L6: 29 | M6: 0.3793103448 | N6: 70 | O6: 137 | P6: 0.5109489051 | Q6: 0 | R6: 4 | S6: 0 | T6: 19 | U6: 47 | V6: 0.4042553191 | W6: 20 | X6: 57 | Y6: 0.350877193 | Z6: 104 | AA6: 214 | AB6: 0.4859813084 | AC6: 3 | AD6: 13 | AE6: 0.2307692308 | AF6: 39 | AG6: 86 | AH6: 0.4534883721 | AI6: 31 | AJ6: 76 | AK6: 0.4078947368 | AL6: 81 | AM6: 190 | AN6: 0.4263157895 | AO6: 3 | AP6: 7 | AQ6: 0.4285714286 | AR6: 22 | AS6: 48 | AT6: 0.4583333333 | AU6: 38 | AV6: 87 | AW6: 0.4367816092 | AX6: 52 | AY6: 133 | AZ6: 0.3909774436 | BA6: 4 | BB6: 21 | BC6: 0.1904761905 | BD6: 27 | BE6: 84 | BF6: 0.3214285714 | BG6: 22 | BH6: 52 | BI6: 0.4230769231 | BJ6: 36 | BK6: 85 | BL6: 0.4235294118 | BM6: 12 | BN6: 33 | BO6: 0.3636363636 | BP6: 42 | BQ6: 127 | BR6: 0.3307086614 | BS6: 17 | BT6: 49 | BU6: 0.3469387755 | BV6: 87 | BW6: 188 | BX6: 0.4627659574 | BY6: 3 | BZ6: 13 | CA6: 0.2307692308 | CB6: 33 | CC6: 102 | CD6: 0.3235294118
A7: 4 | B7: North Central | C7: 540 | D7: Navarro College | E7: 0 | F7: 1 | G7: 0 | H7: 37 | I7: 146 | J7: 0.2534246575 | K7: 19 | L7: 61 | M7: 0.3114754098 | N7: 69 | O7: 202 | P7: 0.3415841584 | Q7: 5 | R7: 16 | S7: 0.3125 | T7: 28 | U7: 97 | V7: 0.2886597938 | W7: 26 | X7: 85 | Y7: 0.3058823529 | Z7: 99 | AA7: 305 | AB7: 0.3245901639 | AC7: 14 | AD7: 45 | AE7: 0.3111111111 | AF7: 22 | AG7: 83 | AH7: 0.265060241 | AI7: 36 | AJ7: 119 | AK7: 0.3025210084 | AL7: 131 | AM7: 324 | AN7: 0.4043209877 | AO7: 19 | AP7: 45 | AQ7: 0.4222222222 | AR7: 41 | AS7: 103 | AT7: 0.3980582524 | AU7: 37 | AV7: 115 | AW7: 0.3217391304 | AX7: 78 | AY7: 285 | AZ7: 0.2736842105 | BA7: 16 | BB7: 89 | BC7: 0.1797752809 | BD7: 35 | BE7: 165 | BF7: 0.2121212121 | BG7: 24 | BH7: 103 | BI7: 0.2330097087 | BJ7: 35 | BK7: 202 | BL7: 0.1732673267 | BM7: 13 | BN7: 81 | BO7: 0.1604938272 | BP7: 22 | BQ7: 129 | BR7: 0.1705426357 | BS7: 19 | BT7: 95 | BU7: 0.2 | BV7: 56 | BW7: 236 | BX7: 0.2372881356 | BY7: 16 | BZ7: 81 | CA7: 0.1975308642 | CB7: 31 | CC7: 178 | CD7: 0.1741573034
A8: 4 | B8: North Central | C8: 541 | D8: Paris Jr College - North Central | G8: NA | J8: NA | M8: NA | P8: NA | S8: NA | V8: NA | W8: 1 | X8: 4 | Y8: 0.25 | Z8: 16 | AA8: 31 | AB8: 0.5161290323 | AC8: 6 | AD8: 13 | AE8: 0.4615384615 | AF8: 10 | AG8: 26 | AH8: 0.3846153846 | AI8: 4 | AJ8: 15 | AK8: 0.2666666667 | AL8: 31 | AM8: 74 | AN8: 0.4189189189 | AO8: 1 | AP8: 10 | AQ8: 0.1 | AR8: 9 | AS8: 24 | AT8: 0.375 | AU8: 3 | AV8: 27 | AW8: 0.1111111111 | AX8: 23 | AY8: 66 | AZ8: 0.3484848485 | BA8: 5 | BB8: 21 | BC8: 0.2380952381 | BD8: 9 | BE8: 26 | BF8: 0.3461538462 | BG8: 6 | BH8: 25 | BI8: 0.24 | BJ8: 29 | BK8: 101 | BL8: 0.2871287129 | BM8: 0 | BN8: 2 | BO8: 0 | BP8: 2 | BQ8: 17 | BR8: 0.1176470588 | BS8: 4 | BT8: 29 | BU8: 0.1379310345 | BV8: 10 | BW8: 43 | BX8: 0.2325581395 | BY8: 4 | BZ8: 16 | CA8: 0.25 | CB8: 4 | CC8: 37 | CD8: 0.1081081081
A9: 4 | B9: North Central | C9: 546 | D9: New Denton ISD | E9: 23 | F9: 81 | G9: 0.2839506173 | H9: 168 | I9: 311 | J9: 0.540192926 | K9: 117 | L9: 191 | M9: 0.612565445 | N9: 240 | O9: 398 | P9: 0.6030150754 | Q9: 37 | R9: 88 | S9: 0.4204545455 | T9: 208 | U9: 346 | V9: 0.6011560694 | W9: 183 | X9: 299 | Y9: 0.6120401338 | Z9: 346 | AA9: 572 | AB9: 0.6048951049 | AC9: 81 | AD9: 142 | AE9: 0.5704225352 | AF9: 258 | AG9: 448 | AH9: 0.5758928571 | AI9: 240 | AJ9: 424 | AK9: 0.5660377358 | AL9: 547 | AM9: 853 | AN9: 0.6412661196 | AO9: 28 | AP9: 74 | AQ9: 0.3783783784 | AR9: 187 | AS9: 323 | AT9: 0.5789473684 | AU9: 198 | AV9: 322 | AW9: 0.6149068323 | AX9: 392 | AY9: 664 | AZ9: 0.5903614458 | BA9: 92 | BB9: 176 | BC9: 0.5227272727 | BD9: 282 | BE9: 415 | BF9: 0.6795180723 | BG9: 237 | BH9: 344 | BI9: 0.6889534884 | BJ9: 585 | BK9: 892 | BL9: 0.6558295964 | BM9: 106 | BN9: 187 | BO9: 0.5668449198 | BP9: 294 | BQ9: 446 | BR9: 0.6591928251 | BS9: 283 | BT9: 409 | BU9: 0.6919315403 | BV9: 568 | BW9: 845 | BX9: 0.6721893491 | BY9: 130 | BZ9: 283 | CA9: 0.4593639576 | CB9: 201 | CC9: 439 | CD9: 0.4578587699
A10: 4 | B10: North Central | C10: 547 | D10: Grayson College - North Central | E10: 2 | F10: 4 | G10: 0.5 | H10: 75 | I10: 108 | J10: 0.6944444444 | K10: 56 | L10: 65 | M10: 0.8615384615 | N10: 132 | O10: 163 | P10: 0.8098159509 | Q10: 4 | R10: 7 | S10: 0.5714285714 | T10: 88 | U10: 119 | V10: 0.7394957983 | W10: 76 | X10: 97 | Y10: 0.7835051546 | Z10: 130 | AA10: 172 | AB10: 0.7558139535 | AC10: 41 | AD10: 64 | AE10: 0.640625 | AF10: 182 | AG10: 234 | AH10: 0.7777777778 | AI10: 95 | AJ10: 124 | AK10: 0.7661290323 | AL10: 270 | AM10: 364 | AN10: 0.7417582418 | AO10: 22 | AP10: 37 | AQ10: 0.5945945946 | AR10: 102 | AS10: 137 | AT10: 0.7445255474 | AU10: 96 | AV10: 140 | AW10: 0.6857142857 | AX10: 207 | AY10: 288 | AZ10: 0.71875 | BA10: 28 | BB10: 47 | BC10: 0.5957446809 | BD10: 129 | BE10: 159 | BF10: 0.8113207547 | BG10: 104 | BH10: 128 | BI10: 0.8125 | BJ10: 313 | BK10: 398 | BL10: 0.7864321608 | BM10: 14 | BN10: 18 | BO10: 0.7777777778 | BP10: 124 | BQ10: 160 | BR10: 0.775 | BS10: 143 | BT10: 183 | BU10: 0.781420765 | BV10: 349 | BW10: 409 | BX10: 0.8533007335 | BY10: 73 | BZ10: 105 | CA10: 0.6952380952 | CB10: 103 | CC10: 183 | CD10: 0.5628415301
A11: 5 | B11: Tarrant County | C11: 538 | D11: Tarrant County WDB | E11: 18 | F11: 133 | G11: 0.1353383459 | H11: 370 | I11: 796 | J11: 0.4648241206 | K11: 345 | L11: 625 | M11: 0.552 | N11: 859 | O11: 1512 | P11: 0.5681216931 | Q11: 61 | R11: 181 | S11: 0.3370165746 | T11: 594 | U11: 1019 | V11: 0.5829244357 | W11: 598 | X11: 1049 | Y11: 0.5700667302 | Z11: 1165 | AA11: 1957 | AB11: 0.5952989269 | AC11: 70 | AD11: 186 | AE11: 0.376344086 | AF11: 648 | AG11: 1095 | AH11: 0.5917808219 | AI11: 608 | AJ11: 1015 | AK11: 0.5990147783 | AL11: 1377 | AM11: 2299 | AN11: 0.5989560679 | AO11: 48 | AP11: 119 | AQ11: 0.4033613445 | AR11: 655 | AS11: 1105 | AT11: 0.592760181 | AU11: 573 | AV11: 871 | AW11: 0.6578645235 | AX11: 1595 | AY11: 2447 | AZ11: 0.6518185533 | BA11: 66 | BB11: 161 | BC11: 0.4099378882 | BD11: 708 | BE11: 1166 | BF11: 0.6072041166 | BG11: 461 | BH11: 827 | BI11: 0.5574365175 | BJ11: 1201 | BK11: 2183 | BL11: 0.5501603298 | BM11: 166 | BN11: 406 | BO11: 0.4088669951 | BP11: 613 | BQ11: 1124 | BR11: 0.5453736655 | BS11: 444 | BT11: 805 | BU11: 0.551552795 | BV11: 1099 | BW11: 2009 | BX11: 0.5470383275 | BY11: 155 | BZ11: 460 | CA11: 0.3369565217 | CB11: 464 | CC11: 1280 | CD11: 0.3625
A12: 6 | B12: Dallas County | C12: 509 | D12: Dallas County LDB | E12: 124 | F12: 188 | G12: 0.6595744681 | H12: 660 | I12: 1053 | J12: 0.6267806268 | K12: 603 | L12: 932 | M12: 0.6469957082 | N12: 1713 | O12: 2580 | P12: 0.6639534884 | Q12: 115 | R12: 178 | S12: 0.6460674157 | T12: 441 | U12: 773 | V12: 0.5705045278 | W12: 278 | X12: 555 | Y12: 0.5009009009 | Z12: 979 | AA12: 1919 | AB12: 0.5101615425 | AC12: 197 | AD12: 714 | AE12: 0.2759103641 | AF12: 627 | AG12: 1531 | AH12: 0.4095362508 | AI12: 535 | AJ12: 1391 | AK12: 0.3846153846 | AL12: 1639 | AM12: 3205 | AN12: 0.5113884555 | AO12: 301 | AP12: 755 | AQ12: 0.3986754967 | AR12: 1085 | AS12: 2001 | AT12: 0.5422288856 | AU12: 1043 | AV12: 1660 | AW12: 0.628313253 | AX12: 2064 | AY12: 3407 | AZ12: 0.6058115644 | BA12: 534 | BB12: 1034 | BC12: 0.5164410058 | BD12: 1285 | BE12: 2311 | BF12: 0.5560363479 | BG12: 905 | BH12: 1651 | BI12: 0.5481526348 | BJ12: 2069 | BK12: 3215 | BL12: 0.6435458787 | BM12: 606 | BN12: 1166 | BO12: 0.5197255575 | BP12: 1172 | BQ12: 2051 | BR12: 0.5714285714 | BS12: 836 | BT12: 1340 | BU12: 0.623880597 | BV12: 2098 | BW12: 3057 | BX12: 0.686293752 | BY12: 602 | BZ12: 1032 | CA12: 0.5833333333 | CB12: 1049 | CC12: 1927 | CD12: 0.5443694862
A13: 7 | B13: North East Texas | C13: 523 | D13: Paris Junior College, Northeast Texas | E13: 2 | F13: 17 | G13: 0.1176470588 | H13: 65 | I13: 211 | J13: 0.308056872 | K13: 26 | L13: 88 | M13: 0.2954545455 | N13: 88 | O13: 208 | P13: 0.4230769231 | Q13: 4 | R13: 30 | S13: 0.1333333333 | T13: 28 | U13: 123 | V13: 0.2276422764 | W13: 22 | X13: 69 | Y13: 0.3188405797 | Z13: 63 | AA13: 178 | AB13: 0.3539325843 | AC13: 10 | AD13: 42 | AE13: 0.2380952381 | AF13: 35 | AG13: 118 | AH13: 0.2966101695 | AI13: 34 | AJ13: 112 | AK13: 0.3035714286 | AL13: 79 | AM13: 197 | AN13: 0.4010152284 | AO13: 6 | AP13: 19 | AQ13: 0.3157894737 | AR13: 34 | AS13: 89 | AT13: 0.3820224719 | AU13: 27 | AV13: 92 | AW13: 0.2934782609 | AX13: 53 | AY13: 163 | AZ13: 0.3251533742 | BA13: 14 | BB13: 62 | BC13: 0.2258064516 | BD13: 40 | BE13: 128 | BF13: 0.3125 | BG13: 30 | BH13: 101 | BI13: 0.297029703 | BJ13: 65 | BK13: 169 | BL13: 0.3846153846 | BM13: 15 | BN13: 71 | BO13: 0.2112676056 | BP13: 37 | BQ13: 100 | BR13: 0.37 | BS13: 25 | BT13: 69 | BU13: 0.3623188406 | BV13: 81 | BW13: 184 | BX13: 0.4402173913 | BY13: 12 | BZ13: 65 | CA13: 0.1846153846 | CB13: 32 | CC13: 91 | CD13: 0.3516483516
A14: 7 | B14: North East Texas | C14: 543 | D14: Texarkana College | E14: 25 | F14: 87 | G14: 0.2873563218 | H14: 31 | I14: 168 | J14: 0.1845238095 | K14: 39 | L14: 131 | M14: 0.2977099237 | N14: 203 | O14: 312 | P14: 0.6506410256 | Q14: 4 | R14: 48 | S14: 0.08333333333 | T14: 8 | U14: 91 | V14: 0.08791208791 | W14: 3 | X14: 85 | Y14: 0.03529411765 | Z14: 10 | AA14: 110 | AB14: 0.09090909091 | AC14: 4 | AD14: 52 | AE14: 0.07692307692 | AF14: 7 | AG14: 87 | AH14: 0.08045977011 | AI14: 10 | AJ14: 92 | AK14: 0.1086956522 | AL14: 10 | AM14: 104 | AN14: 0.09615384615 | AO14: 5 | AP14: 46 | AQ14: 0.1086956522 | AR14: 3 | AS14: 94 | AT14: 0.03191489362 | AU14: 8 | AV14: 82 | AW14: 0.09756097561 | AX14: 9 | AY14: 125 | AZ14: 0.072 | BA14: 3 | BB14: 57 | BC14: 0.05263157895 | BD14: 6 | BE14: 72 | BF14: 0.08333333333 | BG14: 7 | BH14: 70 | BI14: 0.1 | BJ14: 9 | BK14: 97 | BL14: 0.09278350515 | BM14: 0 | BN14: 22 | BO14: 0 | BP14: 16 | BQ14: 69 | BR14: 0.231884058 | BS14: 4 | BT14: 47 | BU14: 0.08510638298 | BV14: 19 | BW14: 102 | BX14: 0.1862745098 | BY14: 4 | BZ14: 55 | CA14: 0.07272727273 | CB14: 9 | CC14: 100 | CD14: 0.09
A15: 8 | B15: East Texas | C15: 519 | D15: Literacy Council of Tyler | E15: 76 | F15: 314 | G15: 0.2420382166 | H15: 198 | I15: 647 | J15: 0.3060278207 | K15: 140 | L15: 396 | M15: 0.3535353535 | N15: 262 | O15: 732 | P15: 0.3579234973 | Q15: 81 | R15: 266 | S15: 0.3045112782 | T15: 187 | U15: 511 | V15: 0.3659491194 | W15: 154 | X15: 431 | Y15: 0.3573085847 | Z15: 366 | AA15: 886 | AB15: 0.4130925508 | AC15: 93 | AD15: 310 | AE15: 0.3 | AF15: 195 | AG15: 537 | AH15: 0.3631284916 | AI15: 173 | AJ15: 524 | AK15: 0.3301526718 | AL15: 375 | AM15: 995 | AN15: 0.3768844221 | AO15: 49 | AP15: 276 | AQ15: 0.1775362319 | AR15: 155 | AS15: 511 | AT15: 0.3033268102 | AU15: 180 | AV15: 515 | AW15: 0.3495145631 | AX15: 334 | AY15: 838 | AZ15: 0.3985680191 | BA15: 92 | BB15: 341 | BC15: 0.2697947214 | BD15: 179 | BE15: 490 | BF15: 0.3653061224 | BG15: 133 | BH15: 367 | BI15: 0.3623978202 | BJ15: 253 | BK15: 716 | BL15: 0.3533519553 | BM15: 87 | BN15: 288 | BO15: 0.3020833333 | BP15: 179 | BQ15: 457 | BR15: 0.3916849015 | BS15: 141 | BT15: 378 | BU15: 0.373015873 | BV15: 281 | BW15: 724 | BX15: 0.388121547 | BY15: 74 | BZ15: 298 | CA15: 0.2483221477 | CB15: 133 | CC15: 531 | CD15: 0.2504708098
A16: 9 | B16: West Central | C16: 501 | D16: Abilene ISD | E16: 0 | F16: 28 | G16: 0 | H16: 7 | I16: 152 | J16: 0.04605263158 | K16: 5 | L16: 77 | M16: 0.06493506494 | N16: 18 | O16: 175 | P16: 0.1028571429 | Q16: 2 | R16: 51 | S16: 0.03921568627 | T16: 17 | U16: 188 | V16: 0.09042553191 | W16: 18 | X16: 156 | Y16: 0.1153846154 | Z16: 37 | AA16: 350 | AB16: 0.1057142857 | AC16: 0 | AD16: 35 | AE16: 0 | AF16: 8 | AG16: 147 | AH16: 0.05442176871 | AI16: 16 | AJ16: 150 | AK16: 0.1066666667 | AL16: 17 | AM16: 307 | AN16: 0.05537459283 | AO16: 0 | AP16: 34 | AQ16: 0 | AR16: 21 | AS16: 214 | AT16: 0.09813084112 | AU16: 18 | AV16: 194 | AW16: 0.09278350515 | AX16: 49 | AY16: 386 | AZ16: 0.1269430052 | BA16: 8 | BB16: 52 | BC16: 0.1538461538 | BD16: 19 | BE16: 232 | BF16: 0.08189655172 | BG16: 18 | BH16: 171 | BI16: 0.1052631579 | BJ16: 55 | BK16: 422 | BL16: 0.1303317536 | BM16: 1 | BN16: 44 | BO16: 0.02272727273 | BP16: 25 | BQ16: 214 | BR16: 0.1168224299 | BS16: 31 | BT16: 190 | BU16: 0.1631578947 | BV16: 48 | BW16: 347 | BX16: 0.1383285303 | BY16: 1 | BZ16: 46 | CA16: 0.02173913043 | CB16: 27 | CC16: 173 | CD16: 0.1560693642
A17: 10 | B17: Borderplex | C17: 544 | D17: Ysleta ISD | E17: 30 | F17: 175 | G17: 0.1714285714 | H17: 149 | I17: 710 | J17: 0.2098591549 | K17: 122 | L17: 578 | M17: 0.2110726644 | N17: 333 | O17: 1435 | P17: 0.2320557491 | Q17: 29 | R17: 199 | S17: 0.1457286432 | T17: 125 | U17: 636 | V17: 0.1965408805 | W17: 101 | X17: 567 | Y17: 0.1781305115 | Z17: 275 | AA17: 1489 | AB17: 0.1846877099 | AC17: 23 | AD17: 199 | AE17: 0.1155778894 | AF17: 104 | AG17: 677 | AH17: 0.1536189069 | AI17: 103 | AJ17: 618 | AK17: 0.1666666667 | AL17: 222 | AM17: 1308 | AN17: 0.1697247706 | AO17: 18 | AP17: 198 | AQ17: 0.09090909091 | AR17: 89 | AS17: 583 | AT17: 0.1526586621 | AU17: 100 | AV17: 563 | AW17: 0.1776198934 | AX17: 188 | AY17: 1253 | AZ17: 0.1500399042 | BA17: 24 | BB17: 264 | BC17: 0.09090909091 | BD17: 55 | BE17: 518 | BF17: 0.1061776062 | BG17: 59 | BH17: 565 | BI17: 0.1044247788 | BJ17: 125 | BK17: 1367 | BL17: 0.09144111192 | BM17: 23 | BN17: 206 | BO17: 0.1116504854 | BP17: 38 | BQ17: 549 | BR17: 0.06921675774 | BS17: 40 | BT17: 445 | BU17: 0.08988764045 | BV17: 115 | BW17: 1129 | BX17: 0.1018600531 | BY17: 40 | BZ17: 322 | CA17: 0.1242236025 | CB17: 79 | CC17: 676 | CD17: 0.1168639053
A18: 11 | B18: Permian Basin | C18: 517 | D18: Howard College, Permian Basin | E18: 6 | F18: 16 | G18: 0.375 | H18: 26 | I18: 59 | J18: 0.4406779661 | K18: 23 | L18: 38 | M18: 0.6052631579 | N18: 31 | O18: 71 | P18: 0.4366197183 | Q18: 27 | R18: 33 | S18: 0.8181818182 | T18: 20 | U18: 36 | V18: 0.5555555556 | W18: 14 | X18: 29 | Y18: 0.4827586207 | Z18: 27 | AA18: 64 | AB18: 0.421875 | AC18: 17 | AD18: 32 | AE18: 0.53125 | AF18: 15 | AG18: 47 | AH18: 0.3191489362 | AI18: 42 | AJ18: 72 | AK18: 0.5833333333 | AL18: 20 | AM18: 67 | AN18: 0.2985074627 | AO18: 8 | AP18: 24 | AQ18: 0.3333333333 | AR18: 13 | AS18: 42 | AT18: 0.3095238095 | AU18: 16 | AV18: 40 | AW18: 0.4 | AX18: 31 | AY18: 59 | AZ18: 0.5254237288 | BA18: 4 | BB18: 18 | BC18: 0.2222222222 | BD18: 10 | BE18: 30 | BF18: 0.3333333333 | BG18: 7 | BH18: 36 | BI18: 0.1944444444 | BJ18: 24 | BK18: 47 | BL18: 0.5106382979 | BM18: 36 | BN18: 53 | BO18: 0.679245283 | BP18: 55 | BQ18: 69 | BR18: 0.7971014493 | BS18: 43 | BT18: 57 | BU18: 0.7543859649 | BV18: 51 | BW18: 84 | BX18: 0.6071428571 | BY18: 18 | BZ18: 26 | CA18: 0.6923076923 | CB18: 17 | CC18: 33 | CD18: 0.5151515152
A19: 11 | B19: Permian Basin | C19: 525 | D19: Region 17 ESC, Permian Basin | G19: NA | H19: 2 | I19: 3 | J19: 0.6666666667 | K19: 3 | L19: 5 | M19: 0.6 | N19: 14 | O19: 49 | P19: 0.2857142857 | Q19: 6 | R19: 6 | S19: 1 | T19: 12 | U19: 21 | V19: 0.5714285714 | W19: 9 | X19: 21 | Y19: 0.4285714286 | Z19: 42 | AA19: 117 | AB19: 0.358974359 | AC19: 0 | AD19: 1 | AE19: 0 | AF19: 7 | AG19: 17 | AH19: 0.4117647059 | AI19: 6 | AJ19: 31 | AK19: 0.1935483871 | AL19: 44 | AM19: 97 | AN19: 0.4536082474 | AO19: 2 | AP19: 3 | AQ19: 0.6666666667 | AR19: 6 | AS19: 17 | AT19: 0.3529411765 | AU19: 19 | AV19: 36 | AW19: 0.5277777778 | AX19: 28 | AY19: 77 | AZ19: 0.3636363636 | BA19: 1 | BB19: 2 | BC19: 0.5 | BD19: 3 | BE19: 20 | BF19: 0.15 | BG19: 11 | BH19: 23 | BI19: 0.4782608696 | BJ19: 44 | BK19: 92 | BL19: 0.4782608696 | BM19: 3 | BN19: 6 | BO19: 0.5 | BP19: 14 | BQ19: 24 | BR19: 0.5833333333 | BS19: 9 | BT19: 27 | BU19: 0.3333333333 | BV19: 47 | BW19: 83 | BX19: 0.5662650602 | BY19: 1 | BZ19: 2 | CA19: 0.5 | CB19: 7 | CC19: 15 | CD19: 0.4666666667
A20: 11 | B20: Permian Basin | C20: 539 | D20: Midland College | E20: 2 | F20: 14 | G20: 0.1428571429 | H20: 29 | I20: 183 | J20: 0.1584699454 | K20: 20 | L20: 107 | M20: 0.1869158879 | N20: 68 | O20: 261 | P20: 0.2605363985 | Q20: 1 | R20: 16 | S20: 0.0625 | T20: 48 | U20: 266 | V20: 0.1804511278 | W20: 48 | X20: 176 | Y20: 0.2727272727 | Z20: 106 | AA20: 414 | AB20: 0.2560386473 | AC20: 5 | AD20: 63 | AE20: 0.07936507937 | AF20: 141 | AG20: 406 | AH20: 0.3472906404 | AI20: 76 | AJ20: 235 | AK20: 0.3234042553 | AL20: 64 | AM20: 283 | AN20: 0.2261484099 | AO20: 14 | AP20: 103 | AQ20: 0.1359223301 | AR20: 103 | AS20: 408 | AT20: 0.2524509804 | AU20: 56 | AV20: 187 | AW20: 0.2994652406 | AX20: 94 | AY20: 400 | AZ20: 0.235 | BA20: 4 | BB20: 64 | BC20: 0.0625 | BD20: 102 | BE20: 380 | BF20: 0.2684210526 | BG20: 19 | BH20: 102 | BI20: 0.1862745098 | BJ20: 97 | BK20: 370 | BL20: 0.2621621622 | BM20: 5 | BN20: 41 | BO20: 0.1219512195 | BP20: 51 | BQ20: 281 | BR20: 0.1814946619 | BS20: 33 | BT20: 165 | BU20: 0.2 | BV20: 68 | BW20: 295 | BX20: 0.2305084746 | BY20: 14 | BZ20: 126 | CA20: 0.1111111111 | CB20: 60 | CC20: 282 | CD20: 0.2127659574
A21: 11 | B21: Permian Basin | C21: 545 | D21: Odessa College | E21: 13 | F21: 77 | G21: 0.1688311688 | H21: 41 | I21: 205 | J21: 0.2 | K21: 26 | L21: 124 | M21: 0.2096774194 | N21: 84 | O21: 268 | P21: 0.3134328358 | Q21: 16 | R21: 51 | S21: 0.3137254902 | T21: 37 | U21: 149 | V21: 0.2483221477 | W21: 43 | X21: 218 | Y21: 0.1972477064 | Z21: 75 | AA21: 347 | AB21: 0.2161383285 | AC21: 11 | AD21: 67 | AE21: 0.1641791045 | AF21: 36 | AG21: 200 | AH21: 0.18 | AI21: 30 | AJ21: 213 | AK21: 0.1408450704 | AL21: 78 | AM21: 401 | AN21: 0.1945137157 | AO21: 23 | AP21: 107 | AQ21: 0.214953271 | AR21: 41 | AS21: 245 | AT21: 0.1673469388 | AU21: 40 | AV21: 214 | AW21: 0.1869158879 | AX21: 74 | AY21: 376 | AZ21: 0.1968085106 | BA21: 20 | BB21: 91 | BC21: 0.2197802198 | BD21: 27 | BE21: 192 | BF21: 0.140625 | BG21: 36 | BH21: 190 | BI21: 0.1894736842 | BJ21: 81 | BK21: 391 | BL21: 0.2071611253 | BM21: 14 | BN21: 64 | BO21: 0.21875 | BP21: 32 | BQ21: 226 | BR21: 0.1415929204 | BS21: 28 | BT21: 164 | BU21: 0.1707317073 | BV21: 82 | BW21: 387 | BX21: 0.2118863049 | BY21: 18 | BZ21: 82 | CA21: 0.2195121951 | CB21: 36 | CC21: 175 | CD21: 0.2057142857
A22: 12 | B22: Concho Valley | C22: 516 | D22: Howard College, Concho Valley | E22: 15 | F22: 47 | G22: 0.3191489362 | H22: 25 | I22: 168 | J22: 0.1488095238 | K22: 47 | L22: 109 | M22: 0.4311926606 | N22: 81 | O22: 221 | P22: 0.3665158371 | Q22: 9 | R22: 31 | S22: 0.2903225806 | T22: 60 | U22: 120 | V22: 0.5 | W22: 53 | X22: 86 | Y22: 0.6162790698 | Z22: 65 | AA22: 199 | AB22: 0.3266331658 | AC22: 35 | AD22: 72 | AE22: 0.4861111111 | AF22: 62 | AG22: 130 | AH22: 0.4769230769 | AI22: 75 | AJ22: 176 | AK22: 0.4261363636 | AL22: 91 | AM22: 248 | AN22: 0.3669354839 | AO22: 42 | AP22: 109 | AQ22: 0.3853211009 | AR22: 41 | AS22: 132 | AT22: 0.3106060606 | AU22: 52 | AV22: 139 | AW22: 0.3741007194 | AX22: 8 | AY22: 150 | AZ22: 0.05333333333 | BA22: 1 | BB22: 49 | BC22: 0.02040816327 | BD22: 3 | BE22: 110 | BF22: 0.02727272727 | BG22: 4 | BH22: 84 | BI22: 0.04761904762 | BJ22: 4 | BK22: 212 | BL22: 0.01886792453 | BM22: 3 | BN22: 65 | BO22: 0.04615384615 | BP22: 5 | BQ22: 102 | BR22: 0.04901960784 | BS22: 3 | BT22: 77 | BU22: 0.03896103896 | BV22: 9 | BW22: 203 | BX22: 0.04433497537 | BY22: 5 | BZ22: 57 | CA22: 0.08771929825 | CB22: 0 | CC22: 117 | CD22: 0
A23: 13 | B23: Heart of Texas | C23: 520 | D23: McLennan Community College | E23: 74 | F23: 257 | G23: 0.2879377432 | H23: 117 | I23: 511 | J23: 0.228962818 | K23: 94 | L23: 255 | M23: 0.368627451 | N23: 187 | O23: 485 | P23: 0.3855670103 | Q23: 58 | R23: 189 | S23: 0.3068783069 | T23: 114 | U23: 311 | V23: 0.3665594855 | W23: 88 | X23: 261 | Y23: 0.337164751 | Z23: 149 | AA23: 359 | AB23: 0.4150417827 | AC23: 30 | AD23: 107 | AE23: 0.2803738318 | AF23: 124 | AG23: 259 | AH23: 0.4787644788 | AI23: 73 | AJ23: 210 | AK23: 0.3476190476 | AL23: 153 | AM23: 470 | AN23: 0.3255319149 | AO23: 7 | AP23: 43 | AQ23: 0.1627906977 | AR23: 80 | AS23: 309 | AT23: 0.2588996764 | AU23: 42 | AV23: 142 | AW23: 0.2957746479 | AX23: 130 | AY23: 331 | AZ23: 0.3927492447 | BA23: 25 | BB23: 91 | BC23: 0.2747252747 | BD23: 122 | BE23: 331 | BF23: 0.3685800604 | BG23: 45 | BH23: 140 | BI23: 0.3214285714 | BJ23: 101 | BK23: 367 | BL23: 0.2752043597 | BM23: 19 | BN23: 99 | BO23: 0.1919191919 | BP23: 57 | BQ23: 218 | BR23: 0.2614678899 | BS23: 41 | BT23: 141 | BU23: 0.2907801418 | BV23: 60 | BW23: 275 | BX23: 0.2181818182 | BY23: 17 | BZ23: 83 | CA23: 0.2048192771 | CB23: 34 | CC23: 201 | CD23: 0.1691542289
A24: 14 | B24: Capital Area | C24: 504 | D24: Austin Community College | E24: 39 | F24: 140 | G24: 0.2785714286 | H24: 280 | I24: 749 | J24: 0.3738317757 | K24: 245 | L24: 441 | M24: 0.5555555556 | N24: 667 | O24: 1252 | P24: 0.5327476038 | Q24: 38 | R24: 92 | S24: 0.4130434783 | T24: 304 | U24: 734 | V24: 0.4141689373 | W24: 240 | X24: 482 | Y24: 0.4979253112 | Z24: 748 | AA24: 1326 | AB24: 0.5641025641 | AC24: 67 | AD24: 210 | AE24: 0.319047619 | AF24: 358 | AG24: 799 | AH24: 0.4480600751 | AI24: 260 | AJ24: 622 | AK24: 0.4180064309 | AL24: 772 | AM24: 1672 | AN24: 0.461722488 | AO24: 67 | AP24: 158 | AQ24: 0.4240506329 | AR24: 427 | AS24: 923 | AT24: 0.4626218852 | AU24: 292 | AV24: 614 | AW24: 0.4755700326 | AX24: 898 | AY24: 1892 | AZ24: 0.4746300211 | BA24: 54 | BB24: 151 | BC24: 0.357615894 | BD24: 356 | BE24: 880 | BF24: 0.4045454545 | BG24: 289 | BH24: 647 | BI24: 0.4466769706 | BJ24: 802 | BK24: 1808 | BL24: 0.4435840708 | BM24: 50 | BN24: 189 | BO24: 0.2645502646 | BP24: 347 | BQ24: 972 | BR24: 0.3569958848 | BS24: 264 | BT24: 648 | BU24: 0.4074074074 | BV24: 767 | BW24: 1895 | BX24: 0.4047493404 | BY24: 63 | BZ24: 283 | CA24: 0.222614841 | CB24: 340 | CC24: 1064 | CD24: 0.3195488722
A25: 15 | B25: Rural Capital | C25: 508 | D25: Community Action Inc. | E25: 9 | F25: 49 | G25: 0.1836734694 | H25: 79 | I25: 262 | J25: 0.3015267176 | K25: 52 | L25: 132 | M25: 0.3939393939 | N25: 137 | O25: 358 | P25: 0.3826815642 | Q25: 14 | R25: 56 | S25: 0.25 | T25: 83 | U25: 230 | V25: 0.3608695652 | W25: 56 | X25: 190 | Y25: 0.2947368421 | Z25: 148 | AA25: 387 | AB25: 0.3824289406 | AC25: 14 | AD25: 77 | AE25: 0.1818181818 | AF25: 62 | AG25: 233 | AH25: 0.2660944206 | AI25: 99 | AJ25: 253 | AK25: 0.3913043478 | AL25: 217 | AM25: 508 | AN25: 0.4271653543 | AO25: 25 | AP25: 81 | AQ25: 0.3086419753 | AR25: 151 | AS25: 310 | AT25: 0.4870967742 | AU25: 142 | AV25: 278 | AW25: 0.5107913669 | AX25: 389 | AY25: 765 | AZ25: 0.508496732 | BA25: 40 | BB25: 192 | BC25: 0.2083333333 | BD25: 237 | BE25: 551 | BF25: 0.4301270417 | BG25: 134 | BH25: 311 | BI25: 0.4308681672 | BJ25: 385 | BK25: 846 | BL25: 0.4550827423 | BM25: 36 | BN25: 192 | BO25: 0.1875 | BP25: 175 | BQ25: 517 | BR25: 0.3384912959 | BS25: 180 | BT25: 424 | BU25: 0.4245283019 | BV25: 376 | BW25: 982 | BX25: 0.382892057 | BY25: 41 | BZ25: 170 | CA25: 0.2411764706 | CB25: 201 | CC25: 579 | CD25: 0.3471502591
A26: 16 | B26: Brazos Valley | C26: 505 | D26: Brazos Valley COG | E26: 15 | F26: 47 | G26: 0.3191489362 | H26: 245 | I26: 606 | J26: 0.404290429 | K26: 196 | L26: 400 | M26: 0.49 | N26: 711 | O26: 1253 | P26: 0.5674381484 | Q26: 7 | R26: 40 | S26: 0.175 | T26: 124 | U26: 269 | V26: 0.4609665428 | W26: 145 | X26: 305 | Y26: 0.4754098361 | Z26: 347 | AA26: 642 | AB26: 0.5404984424 | AC26: 12 | AD26: 72 | AE26: 0.1666666667 | AF26: 65 | AG26: 218 | AH26: 0.2981651376 | AI26: 92 | AJ26: 235 | AK26: 0.3914893617 | AL26: 289 | AM26: 577 | AN26: 0.5008665511 | AO26: 15 | AP26: 46 | AQ26: 0.3260869565 | AR26: 57 | AS26: 150 | AT26: 0.38 | AU26: 89 | AV26: 219 | AW26: 0.4063926941 | AX26: 223 | AY26: 417 | AZ26: 0.5347721823 | BA26: 57 | BB26: 142 | BC26: 0.4014084507 | BD26: 111 | BE26: 252 | BF26: 0.4404761905 | BG26: 92 | BH26: 217 | BI26: 0.4239631336 | BJ26: 274 | BK26: 596 | BL26: 0.4597315436 | BM26: 13 | BN26: 34 | BO26: 0.3823529412 | BP26: 11 | BQ26: 57 | BR26: 0.1929824561 | BS26: 22 | BT26: 81 | BU26: 0.2716049383 | BV26: 42 | BW26: 127 | BX26: 0.3307086614 | BY26: 24 | BZ26: 78 | CA26: 0.3076923077 | CB26: 58 | CC26: 127 | CD26: 0.4566929134
A27: 17 | B27: Deep East Texas | C27: 503 | D27: Angelina College | E27: 12 | F27: 51 | G27: 0.2352941176 | H27: 39 | I27: 147 | J27: 0.2653061224 | K27: 16 | L27: 64 | M27: 0.25 | N27: 69 | O27: 184 | P27: 0.375 | Q27: 13 | R27: 73 | S27: 0.1780821918 | T27: 54 | U27: 172 | V27: 0.3139534884 | W27: 40 | X27: 163 | Y27: 0.245398773 | Z27: 110 | AA27: 324 | AB27: 0.3395061728 | AC27: 34 | AD27: 138 | AE27: 0.2463768116 | AF27: 66 | AG27: 218 | AH27: 0.3027522936 | AI27: 48 | AJ27: 194 | AK27: 0.2474226804 | AL27: 114 | AM27: 387 | AN27: 0.2945736434 | AO27: 36 | AP27: 102 | AQ27: 0.3529411765 | AR27: 62 | AS27: 216 | AT27: 0.287037037 | AU27: 35 | AV27: 118 | AW27: 0.2966101695 | AX27: 74 | AY27: 253 | AZ27: 0.2924901186 | BA27: 34 | BB27: 139 | BC27: 0.2446043165 | BD27: 76 | BE27: 302 | BF27: 0.2516556291 | BG27: 40 | BH27: 181 | BI27: 0.2209944751 | BJ27: 103 | BK27: 331 | BL27: 0.3111782477 | BM27: 41 | BN27: 107 | BO27: 0.3831775701 | BP27: 70 | BQ27: 222 | BR27: 0.3153153153 | BS27: 36 | BT27: 97 | BU27: 0.3711340206 | BV27: 95 | BW27: 231 | BX27: 0.4112554113 | BY27: 20 | BZ27: 97 | CA27: 0.206185567 | CB27: 32 | CC27: 210 | CD27: 0.1523809524
A28: 18 | B28: Southeast Texas | C28: 527 | D28: Region 5 ESC | E28: 5 | F28: 27 | G28: 0.1851851852 | H28: 8 | I28: 112 | J28: 0.07142857143 | K28: 5 | L28: 37 | M28: 0.1351351351 | N28: 13 | O28: 80 | P28: 0.1625 | Q28: 2 | R28: 34 | S28: 0.05882352941 | T28: 43 | U28: 127 | V28: 0.3385826772 | W28: 33 | X28: 122 | Y28: 0.2704918033 | Z28: 95 | AA28: 314 | AB28: 0.3025477707 | AC28: 27 | AD28: 115 | AE28: 0.2347826087 | AF28: 79 | AG28: 219 | AH28: 0.3607305936 | AI28: 66 | AJ28: 224 | AK28: 0.2946428571 | AL28: 123 | AM28: 298 | AN28: 0.4127516779 | AO28: 44 | AP28: 178 | AQ28: 0.2471910112 | AR28: 121 | AS28: 287 | AT28: 0.4216027875 | AU28: 79 | AV28: 185 | AW28: 0.427027027 | AX28: 212 | AY28: 474 | AZ28: 0.447257384 | BA28: 27 | BB28: 94 | BC28: 0.2872340426 | BD28: 111 | BE28: 288 | BF28: 0.3854166667 | BG28: 45 | BH28: 111 | BI28: 0.4054054054 | BJ28: 140 | BK28: 332 | BL28: 0.421686747 | BM28: 64 | BN28: 126 | BO28: 0.5079365079 | BP28: 151 | BQ28: 336 | BR28: 0.4494047619 | BS28: 70 | BT28: 171 | BU28: 0.4093567251 | BV28: 191 | BW28: 395 | BX28: 0.4835443038 | BY28: 32 | BZ28: 103 | CA28: 0.3106796117 | CB28: 96 | CC28: 457 | CD28: 0.2100656455
A29: 19 | B29: Golden Crescent | C29: 532 | D29: Victoria College | E29: 11 | F29: 69 | G29: 0.1594202899 | H29: 32 | I29: 129 | J29: 0.2480620155 | K29: 19 | L29: 89 | M29: 0.2134831461 | N29: 76 | O29: 230 | P29: 0.3304347826 | Q29: 4 | R29: 30 | S29: 0.1333333333 | T29: 27 | U29: 122 | V29: 0.2213114754 | W29: 18 | X29: 151 | Y29: 0.119205298 | Z29: 109 | AA29: 338 | AB29: 0.3224852071 | AC29: 13 | AD29: 71 | AE29: 0.1830985915 | AF29: 30 | AG29: 186 | AH29: 0.1612903226 | AI29: 34 | AJ29: 212 | AK29: 0.1603773585 | AL29: 118 | AM29: 438 | AN29: 0.2694063927 | AO29: 6 | AP29: 59 | AQ29: 0.1016949153 | AR29: 42 | AS29: 187 | AT29: 0.2245989305 | AU29: 33 | AV29: 177 | AW29: 0.186440678 | AX29: 89 | AY29: 469 | AZ29: 0.1897654584 | BA29: 3 | BB29: 41 | BC29: 0.07317073171 | BD29: 12 | BE29: 108 | BF29: 0.1111111111 | BG29: 15 | BH29: 100 | BI29: 0.15 | BJ29: 36 | BK29: 310 | BL29: 0.1161290323 | BM29: 9 | BN29: 96 | BO29: 0.09375 | BP29: 27 | BQ29: 190 | BR29: 0.1421052632 | BS29: 26 | BT29: 147 | BU29: 0.1768707483 | BV29: 51 | BW29: 278 | BX29: 0.1834532374 | BY29: 12 | BZ29: 113 | CA29: 0.1061946903 | CB29: 26 | CC29: 151 | CD29: 0.1721854305
A30: 20 | B30: Alamo | C30: 512 | D30: Region 20 ESC | E30: 56 | F30: 287 | G30: 0.1951219512 | H30: 637 | I30: 1849 | J30: 0.3445105462 | K30: 358 | L30: 853 | M30: 0.4196951934 | N30: 1066 | O30: 2452 | P30: 0.4347471452 | Q30: 82 | R30: 229 | S30: 0.3580786026 | T30: 601 | U30: 1599 | V30: 0.3758599124 | W30: 445 | X30: 1263 | Y30: 0.3523357086 | Z30: 1335 | AA30: 3534 | AB30: 0.3777589134 | AC30: 94 | AD30: 419 | AE30: 0.2243436754 | AF30: 646 | AG30: 1776 | AH30: 0.3637387387 | AI30: 565 | AJ30: 1495 | AK30: 0.3779264214 | AL30: 1345 | AM30: 3413 | AN30: 0.3940814533 | AO30: 108 | AP30: 304 | AQ30: 0.3552631579 | AR30: 614 | AS30: 1427 | AT30: 0.4302733006 | AU30: 698 | AV30: 1650 | AW30: 0.423030303 | AX30: 1317 | AY30: 3005 | AZ30: 0.4382695507 | BA30: 102 | BB30: 377 | BC30: 0.2705570292 | BD30: 580 | BE30: 1251 | BF30: 0.4636290967 | BG30: 439 | BH30: 1021 | BI30: 0.429970617 | BJ30: 1337 | BK30: 3013 | BL30: 0.443743777 | BM30: 197 | BN30: 504 | BO30: 0.3908730159 | BP30: 529 | BQ30: 1291 | BR30: 0.4097598761 | BS30: 458 | BT30: 1079 | BU30: 0.4244670992 | BV30: 1331 | BW30: 2738 | BX30: 0.4861212564 | BY30: 119 | BZ30: 401 | CA30: 0.2967581047 | CB30: 541 | CC30: 1511 | CD30: 0.3580410324
A31: 21 | B31: South Texas | C31: 518 | D31: Laredo College | E31: 8 | F31: 47 | G31: 0.170212766 | H31: 49 | I31: 255 | J31: 0.1921568627 | K31: 34 | L31: 161 | M31: 0.2111801242 | N31: 142 | O31: 498 | P31: 0.2851405622 | Q31: 6 | R31: 30 | S31: 0.2 | T31: 62 | U31: 252 | V31: 0.246031746 | W31: 39 | X31: 164 | Y31: 0.237804878 | Z31: 253 | AA31: 809 | AB31: 0.3127317676 | AC31: 32 | AD31: 154 | AE31: 0.2077922078 | AF31: 125 | AG31: 410 | AH31: 0.3048780488 | AI31: 100 | AJ31: 305 | AK31: 0.3278688525 | AL31: 362 | AM31: 1009 | AN31: 0.3587710605 | AO31: 26 | AP31: 85 | AQ31: 0.3058823529 | AR31: 81 | AS31: 245 | AT31: 0.3306122449 | AU31: 88 | AV31: 270 | AW31: 0.3259259259 | AX31: 176 | AY31: 576 | AZ31: 0.3055555556 | BA31: 40 | BB31: 174 | BC31: 0.2298850575 | BD31: 124 | BE31: 487 | BF31: 0.2546201232 | BG31: 57 | BH31: 267 | BI31: 0.2134831461 | BJ31: 196 | BK31: 599 | BL31: 0.32721202 | BM31: 21 | BN31: 118 | BO31: 0.1779661017 | BP31: 121 | BQ31: 375 | BR31: 0.3226666667 | BS31: 82 | BT31: 263 | BU31: 0.3117870722 | BV31: 244 | BW31: 720 | BX31: 0.3388888889 | BY31: 37 | BZ31: 160 | CA31: 0.23125 | CB31: 101 | CC31: 421 | CD31: 0.2399049881
A32: 22 | B32: Coastal Bend | C32: 542 | D32: Region 2 ESC | E32: 0 | F32: 41 | G32: 0 | H32: 0 | I32: 89 | J32: 0 | K32: 1 | L32: 76 | M32: 0.01315789474 | N32: 1 | O32: 76 | P32: 0.01315789474 | Q32: 23 | R32: 129 | S32: 0.1782945736 | T32: 31 | U32: 281 | V32: 0.1103202847 | W32: 28 | X32: 298 | Y32: 0.09395973154 | Z32: 68 | AA32: 756 | AB32: 0.08994708995 | AC32: 28 | AD32: 217 | AE32: 0.1290322581 | AF32: 67 | AG32: 481 | AH32: 0.1392931393 | AI32: 57 | AJ32: 564 | AK32: 0.1010638298 | AL32: 105 | AM32: 826 | AN32: 0.1271186441 | AO32: 45 | AP32: 290 | AQ32: 0.1551724138 | AR32: 63 | AS32: 426 | AT32: 0.1478873239 | AU32: 56 | AV32: 394 | AW32: 0.1421319797 | AX32: 110 | AY32: 711 | AZ32: 0.1547116737 | BA32: 6 | BB32: 120 | BC32: 0.05 | BD32: 27 | BE32: 370 | BF32: 0.07297297297 | BG32: 32 | BH32: 320 | BI32: 0.1 | BJ32: 90 | BK32: 979 | BL32: 0.09193054137 | BM32: 9 | BN32: 21 | BO32: 0.4285714286 | BP32: 31 | BQ32: 153 | BR32: 0.2026143791 | BS32: 32 | BT32: 177 | BU32: 0.1807909605 | BV32: 99 | BW32: 469 | BX32: 0.21108742 | BY32: 42 | BZ32: 273 | CA32: 0.1538461538 | CB32: 40 | CC32: 314 | CD32: 0.127388535
A33: 23 | B33: Lower Rio | C33: 524 | D33: Region 1 ESC | E33: 12 | F33: 46 | G33: 0.2608695652 | H33: 106 | I33: 403 | J33: 0.2630272953 | K33: 84 | L33: 274 | M33: 0.3065693431 | N33: 406 | O33: 1096 | P33: 0.3704379562 | Q33: 17 | R33: 47 | S33: 0.3617021277 | T33: 224 | U33: 584 | V33: 0.3835616438 | W33: 223 | X33: 612 | Y33: 0.364379085 | Z33: 1068 | AA33: 2301 | AB33: 0.4641460235 | AC33: 61 | AD33: 93 | AE33: 0.6559139785 | AF33: 333 | AG33: 730 | AH33: 0.4561643836 | AI33: 331 | AJ33: 808 | AK33: 0.4096534653 | AL33: 822 | AM33: 1915 | AN33: 0.4292428198 | AO33: 92 | AP33: 229 | AQ33: 0.4017467249 | AR33: 318 | AS33: 723 | AT33: 0.4398340249 | AU33: 300 | AV33: 713 | AW33: 0.4207573633 | AX33: 723 | AY33: 1790 | AZ33: 0.4039106145 | BA33: 81 | BB33: 306 | BC33: 0.2647058824 | BD33: 302 | BE33: 795 | BF33: 0.3798742138 | BG33: 217 | BH33: 549 | BI33: 0.3952641166 | BJ33: 659 | BK33: 1678 | BL33: 0.3927294398 | BM33: 37 | BN33: 117 | BO33: 0.3162393162 | BP33: 231 | BQ33: 541 | BR33: 0.426987061 | BS33: 190 | BT33: 514 | BU33: 0.3696498054 | BV33: 590 | BW33: 1558 | BX33: 0.378690629 | BY33: 61 | BZ33: 243 | CA33: 0.2510288066 | CB33: 197 | CC33: 593 | CD33: 0.3322091062
A34: 24 | B34: Cameron County | C34: 506 | D34: Brownsville ISD | E34: 5 | F34: 27 | G34: 0.1851851852 | H34: 76 | I34: 316 | J34: 0.2405063291 | K34: 69 | L34: 241 | M34: 0.2863070539 | N34: 230 | O34: 672 | P34: 0.3422619048 | Q34: 7 | R34: 28 | S34: 0.25 | T34: 97 | U34: 335 | V34: 0.2895522388 | W34: 107 | X34: 301 | Y34: 0.3554817276 | Z34: 381 | AA34: 968 | AB34: 0.3935950413 | AC34: 21 | AD34: 85 | AE34: 0.2470588235 | AF34: 196 | AG34: 473 | AH34: 0.4143763214 | AI34: 205 | AJ34: 561 | AK34: 0.3654188948 | AL34: 438 | AM34: 1098 | AN34: 0.3989071038 | AO34: 7 | AP34: 36 | AQ34: 0.1944444444 | AR34: 171 | AS34: 391 | AT34: 0.4373401535 | AU34: 216 | AV34: 491 | AW34: 0.4399185336 | AX34: 361 | AY34: 1016 | AZ34: 0.3553149606 | BA34: 25 | BB34: 64 | BC34: 0.390625 | BD34: 159 | BE34: 432 | BF34: 0.3680555556 | BG34: 132 | BH34: 392 | BI34: 0.3367346939 | BJ34: 276 | BK34: 959 | BL34: 0.2877997914 | BM34: 15 | BN34: 57 | BO34: 0.2631578947 | BP34: 101 | BQ34: 370 | BR34: 0.272972973 | BS34: 83 | BT34: 319 | BU34: 0.2601880878 | BV34: 241 | BW34: 843 | BX34: 0.2858837485 | BY34: 15 | BZ34: 78 | CA34: 0.1923076923 | CB34: 81 | CC34: 307 | CD34: 0.2638436482
A35: 25 | B35: Texoma | C35: 514 | D35: Grayson College - Texoma | E35: 9 | F35: 32 | G35: 0.28125 | H35: 23 | I35: 69 | J35: 0.3333333333 | K35: 19 | L35: 50 | M35: 0.38 | N35: 53 | O35: 112 | P35: 0.4732142857 | Q35: 16 | R35: 54 | S35: 0.2962962963 | T35: 41 | U35: 96 | V35: 0.4270833333 | W35: 25 | X35: 77 | Y35: 0.3246753247 | Z35: 58 | AA35: 146 | AB35: 0.397260274 | AC35: 27 | AD35: 73 | AE35: 0.3698630137 | AF35: 52 | AG35: 120 | AH35: 0.4333333333 | AI35: 48 | AJ35: 110 | AK35: 0.4363636364 | AL35: 160 | AM35: 288 | AN35: 0.5555555556 | AO35: 19 | AP35: 61 | AQ35: 0.3114754098 | AR35: 60 | AS35: 130 | AT35: 0.4615384615 | AU35: 47 | AV35: 119 | AW35: 0.3949579832 | AX35: 71 | AY35: 219 | AZ35: 0.3242009132 | BA35: 42 | BB35: 110 | BC35: 0.3818181818 | BD35: 39 | BE35: 178 | BF35: 0.2191011236 | BG35: 19 | BH35: 95 | BI35: 0.2 | BJ35: 55 | BK35: 144 | BL35: 0.3819444444 | BM35: 36 | BN35: 96 | BO35: 0.375 | BP35: 23 | BQ35: 101 | BR35: 0.2277227723 | BS35: 25 | BT35: 126 | BU35: 0.1984126984 | BV35: 52 | BW35: 190 | BX35: 0.2736842105 | BY35: 25 | BZ35: 97 | CA35: 0.2577319588 | CB35: 29 | CC35: 156 | CD35: 0.1858974359
A36: 26 | B36: Central Texas | C36: 534 | D36: Central Texas College | E36: 7 | F36: 99 | G36: 0.07070707071 | H36: 16 | I36: 168 | J36: 0.09523809524 | K36: 18 | L36: 119 | M36: 0.1512605042 | N36: 50 | O36: 225 | P36: 0.2222222222 | Q36: 5 | R36: 82 | S36: 0.06097560976 | T36: 9 | U36: 58 | V36: 0.1551724138 | W36: 6 | X36: 64 | Y36: 0.09375 | Z36: 25 | AA36: 143 | AB36: 0.1748251748 | AC36: 1 | AD36: 16 | AE36: 0.0625 | AF36: 1 | AG36: 51 | AH36: 0.01960784314 | AI36: 6 | AJ36: 29 | AK36: 0.2068965517 | AL36: 11 | AM36: 121 | AN36: 0.09090909091 | AO36: 0 | AP36: 12 | AQ36: 0 | AR36: 7 | AS36: 38 | AT36: 0.1842105263 | AU36: 6 | AV36: 71 | AW36: 0.08450704225 | AX36: 9 | AY36: 149 | AZ36: 0.06040268456 | BA36: 1 | BB36: 35 | BC36: 0.02857142857 | BD36: 4 | BE36: 56 | BF36: 0.07142857143 | BG36: 4 | BH36: 67 | BI36: 0.05970149254 | BJ36: 13 | BK36: 168 | BL36: 0.07738095238 | BM36: 1 | BN36: 13 | BO36: 0.07692307692 | BP36: 0 | BQ36: 26 | BR36: 0 | BS36: 1 | BT36: 23 | BU36: 0.04347826087 | BV36: 1 | BW36: 54 | BX36: 0.01851851852 | BY36: 1 | BZ36: 11 | CA36: 0.09090909091 | CB36: 1 | CC36: 15 | CD36: 0.06666666667
A37: 26 | B37: Central Texas | C37: 535 | D37: Temple College | E37: 5 | F37: 21 | G37: 0.2380952381 | H37: 21 | I37: 105 | J37: 0.2 | K37: 21 | L37: 64 | M37: 0.328125 | N37: 25 | O37: 129 | P37: 0.1937984496 | Q37: 8 | R37: 53 | S37: 0.1509433962 | T37: 22 | U37: 157 | V37: 0.1401273885 | W37: 25 | X37: 143 | Y37: 0.1748251748 | Z37: 43 | AA37: 288 | AB37: 0.1493055556 | AC37: 6 | AD37: 86 | AE37: 0.06976744186 | AF37: 16 | AG37: 160 | AH37: 0.1 | AI37: 13 | AJ37: 147 | AK37: 0.08843537415 | AL37: 29 | AM37: 282 | AN37: 0.1028368794 | AO37: 15 | AP37: 89 | AQ37: 0.1685393258 | AR37: 41 | AS37: 178 | AT37: 0.2303370787 | AU37: 39 | AV37: 176 | AW37: 0.2215909091 | AX37: 88 | AY37: 393 | AZ37: 0.2239185751 | BA37: 15 | BB37: 109 | BC37: 0.1376146789 | BD37: 69 | BE37: 266 | BF37: 0.2593984962 | BG37: 50 | BH37: 242 | BI37: 0.2066115702 | BJ37: 66 | BK37: 322 | BL37: 0.2049689441 | BM37: 11 | BN37: 87 | BO37: 0.1264367816 | BP37: 39 | BQ37: 285 | BR37: 0.1368421053 | BS37: 36 | BT37: 215 | BU37: 0.1674418605 | BV37: 54 | BW37: 446 | BX37: 0.1210762332 | BY37: 13 | BZ37: 112 | CA37: 0.1160714286 | CB37: 26 | CC37: 304 | CD37: 0.08552631579
A38: 27 | B38: Middle Rio | C38: 530 | D38: Southwest Texas Junior College | E38: 3 | F38: 81 | G38: 0.03703703704 | H38: 7 | I38: 268 | J38: 0.02611940299 | K38: 3 | L38: 140 | M38: 0.02142857143 | N38: 11 | O38: 246 | P38: 0.04471544715 | Q38: 2 | R38: 67 | S38: 0.02985074627 | T38: 6 | U38: 156 | V38: 0.03846153846 | W38: 2 | X38: 127 | Y38: 0.0157480315 | Z38: 4 | AA38: 310 | AB38: 0.01290322581 | AC38: 5 | AD38: 141 | AE38: 0.03546099291 | AF38: 8 | AG38: 243 | AH38: 0.0329218107 | AI38: 10 | AJ38: 234 | AK38: 0.04273504274 | AL38: 16 | AM38: 376 | AN38: 0.04255319149 | AO38: 1 | AP38: 92 | AQ38: 0.01086956522 | AR38: 8 | AS38: 281 | AT38: 0.02846975089 | AU38: 4 | AV38: 180 | AW38: 0.02222222222 | AX38: 12 | AY38: 359 | AZ38: 0.03342618384 | BA38: 4 | BB38: 133 | BC38: 0.03007518797 | BD38: 3 | BE38: 256 | BF38: 0.01171875 | BG38: 5 | BH38: 128 | BI38: 0.0390625 | BJ38: 8 | BK38: 327 | BL38: 0.0244648318 | BM38: 0 | BN38: 83 | BO38: 0 | BP38: 0 | BQ38: 235 | BR38: 0 | BS38: 4 | BT38: 157 | BU38: 0.02547770701 | BV38: 9 | BW38: 299 | BX38: 0.03010033445 | BY38: 0 | BZ38: 62 | CA38: 0 | CB38: 3 | CC38: 189 | CD38: 0.01587301587
A39: 28 | B39: Gulf Coast | C39: 515 | D39: Houston-Galveston Area Council | E39: 813 | F39: 1899 | G39: 0.4281200632 | H39: 2911 | I39: 6190 | J39: 0.4702746365 | K39: 1720 | L39: 3315 | M39: 0.5188536953 | N39: 4541 | O39: 8614 | P39: 0.5271650801 | Q39: 1012 | R39: 2131 | S39: 0.4748944158 | T39: 2036 | U39: 4271 | V39: 0.4767033482 | W39: 1789 | X39: 3476 | Y39: 0.5146720368 | Z39: 4215 | AA39: 8092 | AB39: 0.5208848245 | AC39: 969 | AD39: 2407 | AE39: 0.4025758205 | AF39: 2443 | AG39: 5240 | AH39: 0.466221374 | AI39: 1987 | AJ39: 4195 | AK39: 0.473659118 | AL39: 4004 | AM39: 7998 | AN39: 0.5006251563 | AO39: 1081 | AP39: 2555 | AQ39: 0.4230919765 | AR39: 2624 | AS39: 5970 | AT39: 0.4395309883 | AU39: 1887 | AV39: 4340 | AW39: 0.4347926267 | AX39: 3325 | AY39: 7649 | AZ39: 0.4346973461 | BA39: 1040 | BB39: 2615 | BC39: 0.3977055449 | BD39: 1907 | BE39: 4568 | BF39: 0.417469352 | BG39: 1308 | BH39: 3163 | BI39: 0.4135314575 | BJ39: 3594 | BK39: 8219 | BL39: 0.4372794744 | BM39: 704 | BN39: 1939 | BO39: 0.3630737494 | BP39: 2042 | BQ39: 5021 | BR39: 0.406691894 | BS39: 1288 | BT39: 3226 | BU39: 0.3992560446 | BV39: 3039 | BW39: 7085 | BX39: 0.4289343684 | BY39: 771 | BZ39: 2358 | CA39: 0.3269720102 | CB39: 1833 | CC39: 4975 | CD39: 0.3684422111
B40: Orphan Grantees | E40: 56 | F40: 254 | G40: 0.2204724409 | H40: 241 | I40: 1091 | J40: 0.2208982585 | K40: 143 | L40: 555 | M40: 0.2576576577 | N40: 342 | O40: 1135 | P40: 0.3013215859 | Q40: 12 | R40: 72 | S40: 0.1666666667 | T40: 5 | U40: 44 | V40: 0.1136363636 | W40: 7 | X40: 23 | Y40: 0.3043478261 | Z40: 16 | AA40: 52 | AB40: 0.3076923077 | AC40: 1 | AD40: 7 | AE40: 0.1428571429 | AF40: 1 | AG40: 6 | AH40: 0.1666666667 | AI40: 1 | AJ40: 6 | AK40: 0.1666666667 | AL40: 4 | AM40: 17 | AN40: 0.2352941176 | AO40: 0 | AP40: 3 | AQ40: 0 | AR40: 0 | AS40: 1 | AT40: 0 | AU40: 0 | AV40: 1 | AW40: 0 | AX40: 0 | AY40: 7 | AZ40: 0 | BA40: 1 | BB40: 1 | BC40: 1 | BD40: 0 | BE40: 1 | BF40: 0 | BG40: 1 | BH40: 1 | BI40: 1 | BJ40: 1 | BK40: 13 | BL40: 0.07692307692 | BO40: NA | BR40: NA | BU40: NA | BX40: NA | CA40: NA | CD40: NA
B41: Statewide | D41: Statewide | E41: 1488 | F41: 4738 | G41: =E41/F41 -> 0.314056564 | H41: 6842 | I41: 18607 | J41: =H41/I41 -> 0.3677110765 | K41: 4738 | L41: 10994 | M41: =K41/L41 -> 0.4309623431 | N41: 13132 | O41: 28361 | P41: =N41/O41 -> 0.4630302176 | Q41: 1748 | R41: 4702 | S41: =Q41/R41 -> 0.3717566993 | T41: 5908 | U41: 14659 | V41: =T41/U41 -> 0.403028856 | W41: 5080 | X41: 12618 | Y41: =W41/X41 -> 0.4025994611 | Z41: 13347 | AA41: 31362 | AB41: =Z41/AA41 -> 0.4255787258 | AC41: 2108 | AD41: 6757 | AE41: =AC41/AD41 -> 0.311972769 | AF41: 7193 | AG41: 18177 | AH41: =AF41/AG41 -> 0.3957198658 | AI41: 6299 | AJ41: 16390 | AK41: =AI41/AJ41 -> 0.3843197071 | AL41: 14560 | AM41: 34155 | AN41: =AL41/AM41 -> 0.4262919046 | AO41: 2234 | AP41: 6643 | AQ41: =AO41/AP41 -> 0.3362938431 | AR41: 7757 | AS41: 18974 | AT41: =AR41/AS41 -> 0.4088225993 | AU41: 6726 | AV41: 16032 | AW41: =AU41/AV41 -> 0.4195359281 | AX41: 13797 | AY41: 32595 | AZ41: =AX41/AY41 -> 0.42328578 | BA41: 2554 | BB41: 7691 | BC41: =BA41/BB41 -> 0.332076453 | BD41: 7272 | BE41: 18626 | BF41: =BD41/BE41 -> 0.3904219908 | BG41: 5093 | BH41: 13276 | BI41: =BG41/BH41 -> 0.3836245857 | BJ41: 13261 | BK41: 32695 | BL41: =BJ41/BK41 -> 0.4055971861 | BM41: 2385 | BN41: 6832 | BO41: =BM41/BN41 -> 0.3490925059 | BP41: 6774 | BQ41: 17589 | BR41: =BP41/BQ41 -> 0.3851270681 | BS41: 5031 | BT41: 12838 | BU41: =BS41/BT41 -> 0.3918834709 | BV41: 12447 | BW41: 29661 | BX41: =BV41/BW41 -> 0.4196419541 | BY41: 2466 | BZ41: 8018 | CA41: 0.3075579945 | CB41: 5985 | CC41: 18534 | CD41: =CB41/CC41 -> 0.3229200388
A42: Funds include: 1,3,5,8,17,18,19,20,21,23,24,26,27,28,29,30,31,33,34,35,36,37,40,43,44,45,46,47,48,49,50,52,53,54,55,56 Total: Total participants for quarterly period described Missing SSN: Number of exiters having an invalid/missing SSN as described by the Social Security Administration. Rate: Rate of Invalid participants to Total Participants.

Sheet Exiters - PY
E1: PY13 (Jul13 - Jun14) | H1: PY14 (Jul14 - Jun15) | K1: PY15 (Jul15 - Jun16) | N1: PY16 (Jul16 - Jun17) | Q1: PY17 (Jul17 - Jun18) | T1: PY18 (Jul18 - Jun19) | W1: PY19 (Jul19 - Dec19)
A2: WDA # | B2: WDA Name | C2: Grantee # | D2: Grantee Name | E2: Missing SSN | F2: Total Exiters | G2: Rate | H2: Missing SSN | I2: Total Exiters | J2: Rate | K2: Missing SSN | L2: Total Exiters | M2: Rate | N2: Missing SSN | O2: Total Exiters | P2: Rate | Q2: Missing SSN | R2: Total Exiters | S2: Rate | T2: Missing SSN | U2: Total Exiters | V2: Rate | W2: Missing SSN | X2: Total Exiters | Y2: Rate
A3: 1 | B3: Panhandle | C3: 502 | D3: Amarillo College | E3: 68 | F3: 465 | G3: =E3/F3 -> 0.1462365591 | H3: 191 | I3: 827 | J3: =H3/I3 -> 0.23095526 | K3: 445 | L3: 1401 | M3: =K3/L3 -> 0.3176302641 | N3: 461 | O3: 1339 | P3: =N3/O3 -> 0.3442867812 | Q3: 346 | R3: 1453 | S3: =Q3/R3 -> 0.238128011 | T3: 300 | U3: 1247 | V3: 0.2405773857 | W3: 60 | X3: 577 | Y3: =W3/X3 -> 0.1039861352
A4: 2 | B4: South Plains | C4: 526 | D4: Region 17 ESC, South Plains | E4: 55 | F4: 220 | G4: =E4/F4 -> 0.25 | H4: 227 | I4: 760 | J4: =H4/I4 -> 0.2986842105 | K4: 181 | L4: 762 | M4: =K4/L4 -> 0.2375328084 | N4: 174 | O4: 877 | P4: =N4/O4 -> 0.1984036488 | Q4: 153 | R4: 706 | S4: =Q4/R4 -> 0.216713881 | T4: 175 | U4: 755 | V4: 0.2317880795 | W4: 52 | X4: 298 | Y4: =W4/X4 -> 0.1744966443
A5: 3 | B5: North Texas | C5: 528 | D5: Region 9 ESC | E5: 131 | F5: 434 | G5: 0.301843318 | H5: 172 | I5: 495 | J5: 0.3474747475 | K5: 174 | L5: 481 | M5: 0.3617463617 | N5: 131 | O5: 458 | P5: 0.2860262009 | Q5: 117 | R5: 516 | S5: 0.226744186 | T5: 132 | U5: 487 | V5: 0.2710472279 | W5: 28 | X5: 177 | Y5: 0.1581920904
A6: 4 | B6: North Central | C6: 533 | D6: Weatherford ISD | E6: 93 | F6: 227 | G6: 0.40969163 | H6: 143 | I6: 320 | J6: 0.446875 | K6: 154 | L6: 364 | M6: 0.4230769231 | N6: 113 | O6: 272 | P6: 0.4154411765 | Q6: 89 | R6: 241 | S6: 0.3692946058 | T6: 156 | U6: 395 | V6: 0.3949367089 | W6: 37 | X6: 117 | Y6: 0.3162393162
A7: 4 | B7: North Central | C7: 540 | D7: Navarro College | E7: 125 | F7: 408 | G7: 0.306372549 | H7: 158 | I7: 501 | J7: 0.3153692615 | K7: 203 | L7: 570 | M7: 0.3561403509 | N7: 172 | O7: 544 | P7: 0.3161764706 | Q7: 109 | R7: 555 | S7: 0.1963963964 | T7: 109 | U7: 539 | V7: 0.2022263451 | W7: 51 | X7: 276 | Y7: 0.1847826087
A8: 4 | B8: North Central | C8: 541 | D8: Paris Jr College - North Central | G8: NA | H8: 17 | I8: 35 | J8: 0.4857142857 | K8: 51 | L8: 128 | M8: =K8/L8 -> 0.3984375 | N8: 35 | O8: 126 | P8: 0.2777777778 | Q8: 48 | R8: 169 | S8: 0.2840236686 | T8: 16 | U8: 91 | V8: 0.1758241758 | W8: 8 | X8: 55 | Y8: 0.1454545455
A9: 4 | B9: North Central | C9: 546 | D9: New Denton ISD | E9: 539 | F9: 960 | G9: 0.5614583333 | H9: 769 | I9: 1295 | J9: 0.5938223938 | K9: 1117 | L9: 1847 | M9: 0.6047644829 | N9: 799 | O9: 1366 | P9: 0.5849194729 | Q9: 1192 | R9: 1817 | S9: 0.6560264172 | T9: 1244 | U9: 1873 | V9: 0.6641751201 | W9: 345 | X9: 768 | Y9: 0.44921875
A10: 4 | B10: North Central | C10: 547 | D10: Grayson College - North Central | E10: 260 | F10: 332 | G10: 0.7831325301 | H10: 296 | I10: 393 | J10: 0.7531806616 | K10: 585 | L10: 781 | M10: 0.7490396927 | N10: 423 | O10: 595 | P10: 0.7109243697 | Q10: 567 | R10: 722 | S10: 0.7853185596 | T10: 627 | U10: 767 | V10: 0.8174706649 | W10: 197 | X10: 317 | Y10: 0.6214511041
A11: 5 | B11: Tarrant County | C11: 538 | D11: Tarrant County WDB | E11: 1566 | F11: 3016 | G11: 0.5192307692 | H11: 2380 | I11: 4151 | J11: 0.5733558179 | K11: 2666 | L11: 4527 | M11: 0.5889109786 | N11: 2841 | O11: 4481 | P11: 0.6340102656 | Q11: 2398 | R11: 4279 | S11: 0.5604113111 | T11: 2299 | U11: 4296 | V11: 0.5351489758 | W11: 635 | X11: 1843 | Y11: 0.3445469343
A12: 6 | B12: Dallas County | C12: 509 | D12: Dallas County LDB | E12: 3074 | F12: 4713 | G12: 0.6522384893 | H12: 1800 | I12: 3401 | J12: 0.5292561011 | K12: 2969 | L12: 6762 | M12: 0.4390712807 | N12: 4439 | O12: 7702 | P12: 0.5763438068 | Q12: 4727 | R12: 8082 | S12: 0.5848799802 | T12: 4652 | U12: 7503 | V12: 0.6200186592 | W12: 1623 | X12: 3071 | Y12: 0.5284923478
A13: 7 | B13: North East Texas | C13: 523 | D13: Paris Junior College, Northeast Texas | E13: 179 | F13: 515 | G13: 0.3475728155 | H13: 115 | I13: 396 | J13: 0.2904040404 | K13: 157 | L13: 461 | M13: 0.3405639913 | N13: 117 | O13: 357 | P13: 0.3277310924 | Q13: 147 | R13: 452 | S13: 0.3252212389 | T13: 156 | U13: 419 | V13: 0.3723150358 | W13: 44 | X13: 158 | Y13: 0.2784810127
A14: 7 | B14: North East Texas | C14: 543 | D14: Texarkana College | E14: 294 | F14: 682 | G14: 0.431085044 | H14: 23 | I14: 331 | J14: 0.06948640483 | K14: 31 | L14: 330 | M14: 0.09393939394 | N14: 23 | O14: 340 | P14: 0.06764705882 | Q14: 25 | R14: 294 | S14: 0.08503401361 | T14: 39 | U14: 238 | V14: 0.1638655462 | W14: 14 | X14: 168 | Y14: 0.08333333333
A15: 8 | B15: East Texas | C15: 519 | D15: Literacy Council of Tyler | E15: 660 | F15: 2036 | G15: 0.3241650295 | H15: 780 | I15: 2067 | J15: 0.3773584906 | K15: 825 | L15: 2329 | M15: 0.354229283 | N15: 709 | O15: 2106 | P15: 0.33665717 | Q15: 634 | R15: 1870 | S15: 0.3390374332 | T15: 674 | U15: 1813 | V15: 0.3717595146 | W15: 218 | X15: 889 | Y15: 0.2452193476
A16: 9 | B16: West Central | C16: 501 | D16: Abilene ISD | E16: 30 | F16: 421 | G16: 0.07125890736 | H16: 71 | I16: 720 | J16: 0.09861111111 | K16: 41 | L16: 631 | M16: 0.06497622821 | N16: 86 | O16: 816 | P16: 0.1053921569 | Q16: 100 | R16: 859 | S16: 0.1164144354 | T16: 103 | U16: 783 | V16: 0.1315453384 | W16: 31 | X16: 250 | Y16: 0.124
A17: 10 | B17: Borderplex | C17: 544 | D17: Ysleta ISD | E17: 630 | F17: 2880 | G17: 0.21875 | H17: 525 | I17: 2864 | J17: 0.1833100559 | K17: 446 | L17: 2767 | M17: 0.1611853993 | N17: 391 | O17: 2579 | P17: 0.1516091508 | Q17: 261 | R17: 2692 | S17: 0.09695393759 | T17: 214 | U17: 2312 | V17: 0.09256055363 | W17: 126 | X17: 1041 | Y17: 0.121037464
A18: 11 | B18: Permian Basin | C18: 517 | D18: Howard College, Permian Basin | E18: 85 | F18: 183 | G18: 0.4644808743 | H18: 88 | I18: 162 | J18: 0.5432098765 | K18: 94 | L18: 215 | M18: 0.4372093023 | N18: 68 | O18: 164 | P18: 0.4146341463 | Q18: 45 | R18: 131 | S18: 0.3435114504 | T18: 184 | U18: 260 | V18: 0.7076923077 | W18: 40 | X18: 68 | Y18: 0.5882352941
A19: 11 | B19: Permian Basin | C19: 525 | D19: Region 17 ESC, Permian Basin | E19: 19 | F19: 57 | G19: 0.3333333333 | H19: 67 | I19: 162 | J19: 0.4135802469 | K19: 57 | L19: 144 | M19: 0.3958333333 | N19: 55 | O19: 133 | P19: 0.4135338346 | Q19: 59 | R19: 137 | S19: 0.4306569343 | T19: 71 | U19: 138 | V19: 0.5144927536 | W19: 10 | X19: 20 | Y19: 0.5
A20: 11 | B20: Permian Basin | C20: 539 | D20: Midland College | E20: 119 | F20: 563 | G20: 0.2113676732 | H20: 201 | I20: 864 | J20: 0.2326388889 | K20: 283 | L20: 982 | M20: 0.2881873727 | N20: 261 | O20: 1072 | P20: 0.2434701493 | Q20: 220 | R20: 903 | S20: 0.2436323367 | T20: 157 | U20: 775 | V20: 0.2025806452 | W20: 73 | X20: 411 | Y20: 0.1776155718
A21: 11 | B21: Permian Basin | C21: 545 | D21: Odessa College | E21: 160 | F21: 663 | G21: 0.2413273002 | H21: 169 | I21: 758 | J21: 0.2229551451 | K21: 154 | L21: 874 | M21: 0.176201373 | N21: 177 | O21: 929 | P21: 0.1905274489 | Q21: 159 | R21: 851 | S21: 0.1868390129 | T21: 156 | U21: 834 | V21: 0.1870503597 | W21: 58 | X21: 277 | Y21: 0.2093862816
A22: 12 | B22: Concho Valley | C22: 516 | D22: Howard College, Concho Valley | E22: 167 | F22: 540 | G22: 0.3092592593 | H22: 187 | I22: 433 | J22: 0.4318706697 | K22: 259 | L22: 616 | M22: 0.4204545455 | N22: 142 | O22: 526 | P22: 0.2699619772 | Q22: 12 | R22: 446 | S22: 0.0269058296 | T22: 19 | U22: 443 | V22: 0.04288939052 | W22: 8 | X22: 188 | Y22: 0.04255319149
A23: 13 | B23: Heart of Texas | C23: 520 | D23: McLennan Community College | E23: 444 | F23: 1450 | G23: 0.3062068966 | H23: 399 | I23: 1096 | J23: 0.3640510949 | K23: 372 | L23: 1025 | M23: 0.3629268293 | N23: 255 | O23: 813 | P23: 0.3136531365 | Q23: 290 | R23: 915 | S23: 0.3169398907 | T23: 176 | U23: 721 | V23: 0.2441054092 | W23: 53 | X23: 297 | Y23: 0.1784511785
A24: 14 | B24: Capital Area | C24: 504 | D24: Austin Community College | E24: 1226 | F24: 2558 | G24: 0.479280688 | H24: 1320 | I24: 2604 | J24: 0.5069124424 | K24: 1438 | L24: 3260 | M24: 0.4411042945 | N24: 1671 | O24: 3546 | P24: 0.4712351946 | Q24: 1490 | R24: 3447 | S24: 0.4322599362 | T24: 1402 | U24: 3638 | V24: 0.3853765805 | W24: 406 | X24: 1359 | Y24: 0.2987490802
A25: 15 | B25: Rural Capital | C25: 508 | D25: Community Action Inc. | E25: 274 | F25: 789 | G25: 0.3472750317 | H25: 300 | I25: 851 | J25: 0.3525264395 | K25: 387 | L25: 1059 | M25: 0.3654390935 | N25: 705 | O25: 1420 | P25: 0.4964788732 | Q25: 778 | R25: 1867 | S25: 0.4167113016 | T25: 762 | U25: 2101 | V25: 0.362684436 | W25: 249 | X25: 774 | Y25: 0.3217054264
A26: 16 | B26: Brazos Valley | C26: 505 | D26: Brazos Valley COG | E26: 1149 | F26: 2272 | G26: 0.505721831 | H26: 618 | I26: 1245 | J26: 0.4963855422 | K26: 454 | L26: 1092 | M26: 0.4157509158 | N26: 381 | O26: 828 | P26: 0.4601449275 | Q26: 523 | R26: 1181 | S26: 0.4428450466 | T26: 87 | U26: 297 | V26: 0.2929292929 | W26: 89 | X26: 221 | Y26: 0.4027149321
A27: 17 | B27: Deep East Texas | C27: 503 | D27: Angelina College | E27: 134 | F27: 437 | G27: 0.3066361556 | H27: 213 | I27: 720 | J27: 0.2958333333 | K27: 259 | L27: 917 | M27: 0.2824427481 | N27: 207 | O27: 681 | P27: 0.3039647577 | Q27: 246 | R27: 933 | S27: 0.2636655949 | T27: 238 | U27: 647 | V27: 0.3678516229 | W27: 55 | X27: 330 | Y27: 0.1666666667
A28: 18 | B28: Southeast Texas | C28: 527 | D28: Region 5 ESC | E28: 28 | F28: 243 | G28: 0.1152263374 | H28: 169 | I28: 582 | J28: 0.2903780069 | K28: 285 | L28: 838 | M28: 0.3400954654 | N28: 448 | O28: 1106 | P28: 0.4050632911 | Q28: 316 | R28: 810 | S28: 0.3901234568 | T28: 469 | U28: 1005 | V28: 0.4666666667 | W28: 134 | X28: 582 | Y28: 0.2302405498
A29: 19 | B29: Golden Crescent | C29: 532 | D29: Victoria College | E29: 136 | F29: 512 | G29: 0.265625 | H29: 154 | I29: 628 | J29: 0.2452229299 | K29: 191 | L29: 897 | M29: 0.2129319955 | N29: 169 | O29: 878 | P29: 0.1924829157 | Q29: 66 | R29: 552 | S29: 0.1195652174 | T29: 112 | U29: 704 | V29: 0.1590909091 | W29: 44 | X29: 278 | Y29: 0.1582733813
A30: 20 | B30: Alamo | C30: 512 | D30: Region 20 ESC | E30: 2099 | F30: 5378 | G30: 0.3902937895 | H30: 2439 | I30: 6530 | J30: 0.3735068913 | K30: 2620 | L30: 7013 | M30: 0.3735919008 | N30: 2714 | O30: 6322 | P30: 0.429294527 | Q30: 2439 | R30: 5603 | S30: 0.4353025165 | T30: 2492 | U30: 5558 | V30: 0.4483627204 | W30: 695 | X30: 2048 | Y30: 0.3393554688
A31: 21 | B31: South Texas | C31: 518 | D31: Laredo College | E31: 233 | F31: 956 | G31: 0.2437238494 | H31: 358 | I31: 1247 | J31: 0.2870890136 | K31: 615 | L31: 1869 | M31: 0.3290529695 | N31: 370 | O31: 1166 | P31: 0.3173241852 | Q31: 383 | R31: 1398 | S31: 0.273962804 | T31: 458 | U31: 1441 | V31: 0.3178348369 | W31: 138 | X31: 581 | Y31: 0.2375215146
A32: 22 | B32: Coastal Bend | C32: 542 | D32: Region 2 ESC | E32: 2 | F32: 269 | G32: 0.007434944238 | H32: 146 | I32: 1423 | J32: 0.1026001405 | K32: 248 | L32: 2015 | M32: 0.1230769231 | N32: 267 | O32: 1775 | P32: 0.1504225352 | Q32: 152 | R32: 1757 | S32: 0.08651109846 | T32: 169 | U32: 813 | V32: 0.2078720787 | W32: 82 | X32: 610 | Y32: 0.1344262295
A33: 23 | B33: Lower Rio | C33: 524 | D33: Region 1 ESC | E33: 608 | F33: 1810 | G33: 0.3359116022 | H33: 1525 | I33: 3525 | J33: 0.4326241135 | K33: 1529 | L33: 3512 | M33: 0.4353644647 | N33: 1417 | O33: 3415 | P33: 0.4149341142 | Q33: 1242 | R33: 3294 | S33: 0.3770491803 | T33: 1034 | U33: 2701 | V33: 0.3828211773 | W33: 274 | X33: 918 | Y33: 0.2984749455
A34: 24 | B34: Cameron County | C34: 506 | D34: Brownsville ISD | E34: 379 | F34: 1246 | G34: 0.3041733547 | H34: 577 | I34: 1600 | J34: 0.360625 | K34: 844 | L34: 2183 | M34: 0.386623912 | N34: 741 | O34: 1905 | P34: 0.388976378 | Q34: 584 | R34: 1822 | S34: 0.3205268935 | T34: 438 | U34: 1572 | V34: 0.2786259542 | W34: 112 | X34: 446 | Y34: 0.2511210762
A35: 25 | B35: Texoma | C35: 514 | D35: Grayson College - Texoma | E35: 100 | F35: 256 | G35: 0.390625 | H35: 138 | I35: 369 | J35: 0.3739837398 | K35: 280 | L35: 576 | M35: 0.4861111111 | N35: 191 | O35: 518 | P35: 0.3687258687 | Q35: 154 | R35: 520 | S35: 0.2961538462 | T35: 132 | U35: 503 | V35: 0.2624254473 | W35: 58 | X35: 262 | Y35: 0.2213740458
A36: 26 | B36: Central Texas | C36: 534 | D36: Central Texas College | E36: 91 | F36: 605 | G36: 0.1504132231 | H36: 45 | I36: 347 | J36: 0.1296829971 | K36: 19 | L36: 217 | M36: 0.08755760369 | N36: 22 | O36: 270 | P36: 0.08148148148 | Q36: 22 | R36: 325 | S36: 0.06769230769 | T36: 3 | U36: 116 | V36: 0.02586206897 | W36: 2 | X36: 27 | Y36: 0.07407407407
A37: 26 | B37: Central Texas | C37: 535 | D37: Temple College | E37: 71 | F37: 315 | G37: 0.2253968254 | H37: 96 | I37: 631 | J37: 0.1521394612 | K37: 63 | L37: 669 | M37: 0.09417040359 | N37: 178 | O37: 819 | P37: 0.2173382173 | Q37: 200 | R37: 930 | S37: 0.2150537634 | T37: 138 | U37: 1027 | V37: 0.1343719572 | W37: 40 | X37: 438 | Y37: 0.09132420091
A38: 27 | B38: Middle Rio | C38: 530 | D38: Southwest Texas Junior College | E38: 23 | F38: 718 | G38: 0.03203342618 | H38: 14 | I38: 644 | J38: 0.02173913043 | K38: 39 | L38: 981 | M38: 0.03975535168 | N38: 25 | O38: 902 | P38: 0.02771618625 | Q38: 20 | R38: 834 | S38: 0.02398081535 | T38: 13 | U38: 767 | V38: 0.01694915254 | W38: 4 | X38: 261 | Y38: 0.0153256705
A39: 28 | B39: Gulf Coast | C39: 515 | D39: Houston-Galveston Area Council | E39: 9846 | F39: 19730 | G39: 0.4990369995 | H39: 8917 | I39: 17681 | J39: 0.5043266784 | K39: 9199 | L39: 19429 | M39: 0.473467497 | N39: 8770 | O39: 20175 | P39: 0.4346964064 | Q39: 7731 | R39: 18231 | S39: 0.4240579233 | T39: 6961 | U39: 16959 | V39: 0.4104605224 | W39: 2601 | X39: 7382 | Y39: 0.3523435383
B40: Orphan Grantees | E40: 769 | F40: 2982 | G40: =E40/F40 -> 0.257880617 | H40: 40 | I40: 191 | J40: =H40/I40 -> 0.2094240838 | K40: 7 | L40: 36 | M40: =K40/L40 -> 0.1944444444 | N40: 0 | O40: 12 | P40: =N40/O40 -> 0 | Q40: 3 | R40: 16 | S40: =Q40/R40 -> 0.1875 | V40: NA | Y40: NA
B41: Statewide | D41: Statewide | E41: 25854 | F41: 61791 | G41: =E41/F41 -> 0.4184104481 | H41: 25765 | I41: 62471 | J41: =H41/I41 -> 0.4124313682 | K41: 29701 | L41: 74312 | M41: =K41/L41 -> 0.3996797287 | N41: 30119 | O41: 73162 | P41: =N41/O41 -> 0.4116754599 | Q41: 27756 | R41: 71073 | S41: =Q41/R41 -> 0.3905280486 | T41: 26289 | U41: 65978 | V41: 0.3984509988 | W41: 8616 | X41: 27594 | Y41: =W41/X41 -> 0.3122417917
A42: Funds include: 1,3,5,8,17,18,19,20,21,23,24,26,27,28,29,30,31,33,34,35,36,37,40,43,44,45,46,47,48,49,50,52,53,54,55,56 Total: Total participants for quarterly period described Missing SSN: Number of exiters having an invalid/missing SSN as described by the Social Security Administration. Rate: Rate of Invalid participants to Total Participants.
